Publisher Label,Publisher URI,"Supplier","Net Amount £","Organisational Unit","Merchant Category Code","Purpose","Payment Date"
"Wolverhampton City Council","http://opendatacommunities.org/id/metropolitan-district-council/wolverhampton","WWW.FLINTS.CO.UK","51.70","Contemporary Gallery","5691","Equipment - Purchase","30/11/2018"
"Wolverhampton City Council","http://opendatacommunities.org/id/metropolitan-district-council/wolverhampton","MAPLE MOTOR SERVICES L","272.92","Visitor Economy - Development","7512","Car Allowances","30/11/2018"
"Wolverhampton City Council","http://opendatacommunities.org/id/metropolitan-district-council/wolverhampton","WWW.SOLENTPLASTICS.CO.","514.50","Visitor Economy - Development","7399","Equipment - Purchase","30/11/2018"
"Wolverhampton City Council","http://opendatacommunities.org/id/metropolitan-district-council/wolverhampton","WWW.SOLENTPLASTICS.CO.","514.50","Visitor Economy - Development","7399","Equipment - Purchase","30/11/2018"
"Wolverhampton City Council","http://opendatacommunities.org/id/metropolitan-district-council/wolverhampton","LIDDELL ELECTRICAL DIS","79.05","Street Lighting Maintenance","5065","Materials","30/11/2018"
"Wolverhampton City Council","http://opendatacommunities.org/id/metropolitan-district-council/wolverhampton","WWW.ARGOS.CO.UK","463.87","Head of Service Specialist Int Support","5310","Equipment - Purchase","30/11/2018"
"Wolverhampton City Council","http://opendatacommunities.org/id/metropolitan-district-council/wolverhampton","WWW.ARGOS.CO.UK","1,469.94","Head of Service Specialist Int Support","5310","Equipment - Purchase","30/11/2018"
"Wolverhampton City Council","http://opendatacommunities.org/id/metropolitan-district-council/wolverhampton","WWW.ARGOS.CO.UK","242.94","Head of Service Specialist Int Support","5310","Equipment - Purchase","30/11/2018"
"Wolverhampton City Council","http://opendatacommunities.org/id/metropolitan-district-council/wolverhampton","WWW.ARGOS.CO.UK","679.99","Head of Service Specialist Int Support","5310","Equipment - Purchase","30/11/2018"
"Wolverhampton City Council","http://opendatacommunities.org/id/metropolitan-district-council/wolverhampton","BUYITDIRECT CO UK","1,395.47","Head of Service Specialist Int Support","5734","Furniture","30/11/2018"
"Wolverhampton City Council","http://opendatacommunities.org/id/metropolitan-district-council/wolverhampton","ARGOS LTD","12.49","LAC Transitions Team","5310","Client Allowances","30/11/2018"
"Wolverhampton City Council","http://opendatacommunities.org/id/metropolitan-district-council/wolverhampton","ARGOS WOLVERHAMPTO","33.33","LAC Transitions Team","5310","Client Allowances","30/11/2018"
"Wolverhampton City Council","http://opendatacommunities.org/id/metropolitan-district-council/wolverhampton","SAINSBURYS (2340)","189.71","LAC Transitions Team","5411","Client Allowances","30/11/2018"
"Wolverhampton City Council","http://opendatacommunities.org/id/metropolitan-district-council/wolverhampton","ROYAL BK OF SCOTLAND","240.00","CIN/CP Social Work Unit - Area 6","6011","No Recourse to Public Funds","30/11/2018"
"Wolverhampton City Council","http://opendatacommunities.org/id/metropolitan-district-council/wolverhampton","Virgin Trains","87.80","Adoption and Residence Team & Allowances","4112","Public Transport","30/11/2018"
"Wolverhampton City Council","http://opendatacommunities.org/id/metropolitan-district-council/wolverhampton","Virgin Trains","76.90","Adoption and Residence Team & Allowances","4112","Public Transport","30/11/2018"
"Wolverhampton City Council","http://opendatacommunities.org/id/metropolitan-district-council/wolverhampton","Virgin Trains","87.80","Adoption and Residence Team & Allowances","4112","Public Transport","30/11/2018"
"Wolverhampton City Council","http://opendatacommunities.org/id/metropolitan-district-council/wolverhampton","POST OFFICE COUNTER","7.30","Adoption and Residence Team & Allowances","9402","Comms - Postage","30/11/2018"
"Wolverhampton City Council","http://opendatacommunities.org/id/metropolitan-district-council/wolverhampton","EWETSUITS.COM","563.30","Towers Outdoor Education Centre","5941","Equipment - Purchase","30/11/2018"
"Wolverhampton City Council","http://opendatacommunities.org/id/metropolitan-district-council/wolverhampton","BLOXWICH  SST","6.00","Economic Development","4112","Public Transport","30/11/2018"
"Wolverhampton City Council","http://opendatacommunities.org/id/metropolitan-district-council/wolverhampton","AMZN MKTP UK M02KK0NU4","94.68","Communications & Marketing - General","5942","Books","30/11/2018"
"Wolverhampton City Council","http://opendatacommunities.org/id/metropolitan-district-council/wolverhampton","DART-CHARGE","107.50","LAC Transitions Team","4784","Client Allowances","30/11/2018"
"Wolverhampton City Council","http://opendatacommunities.org/id/metropolitan-district-council/wolverhampton","WESTON SAWMILLS","125.00","Cemeteries","5261","Equipment - Purchase","30/11/2018"
"Wolverhampton City Council","http://opendatacommunities.org/id/metropolitan-district-council/wolverhampton","Virgin Trains","171.60","LAC Transitions Team","4112","Public Transport","30/11/2018"
"Wolverhampton City Council","http://opendatacommunities.org/id/metropolitan-district-council/wolverhampton","AMZN MKTP UK M06L83ZI4","18.52","Central Baths","5942","Books","30/11/2018"
"Wolverhampton City Council","http://opendatacommunities.org/id/metropolitan-district-council/wolverhampton","Amazon.co.uk M09228NK4","55.79","Language Studies Delivery Area","5969","Equipment - Purchase","30/11/2018"
"Wolverhampton City Council","http://opendatacommunities.org/id/metropolitan-district-council/wolverhampton","AMZN Mktp UK M02PQ4314","7.56","Archives","5942","Books","30/11/2018"
"Wolverhampton City Council","http://opendatacommunities.org/id/metropolitan-district-council/wolverhampton","AMZN MKTP UK M08U423N4","51.36","Global Budgets","5942","Books","30/11/2018"
"Wolverhampton City Council","http://opendatacommunities.org/id/metropolitan-district-council/wolverhampton","AMZN MKTP UK M08GS53A4","96.17","Global Budgets","5942","Books","30/11/2018"
"Wolverhampton City Council","http://opendatacommunities.org/id/metropolitan-district-council/wolverhampton","Amazon.co.uk M09S88N34","11.86","Global Budgets","5969","Books","30/11/2018"
"Wolverhampton City Council","http://opendatacommunities.org/id/metropolitan-district-council/wolverhampton","Amazon.co.uk M08UE03B4","11.48","Environmental Crime and Consumer Protect","5969","Equipment - Purchase","30/11/2018"
"Wolverhampton City Council","http://opendatacommunities.org/id/metropolitan-district-council/wolverhampton","Amazon.co.uk M04231NI4","62.02","Environmental Protection","5969","Equipment - Purchase","30/11/2018"
"Wolverhampton City Council","http://opendatacommunities.org/id/metropolitan-district-council/wolverhampton","J VAN VLIET BIRMINGHAM","73.08","Creative Studies Delivery Area","5399","Materials for resale","30/11/2018"
"Wolverhampton City Council","http://opendatacommunities.org/id/metropolitan-district-council/wolverhampton","Amazon.co.uk M05LO7Z84","12.08","Mayoral Expenses","5969","Equipment - Purchase","29/11/2018"
"Wolverhampton City Council","http://opendatacommunities.org/id/metropolitan-district-council/wolverhampton","SAINSBURYS (2340)","20.80","Mayoral Expenses","5411","Hospitality","29/11/2018"
"Wolverhampton City Council","http://opendatacommunities.org/id/metropolitan-district-council/wolverhampton","POUNDLAND","20.00","EIP Locality 2","5310","Provisions (Not for resale)","29/11/2018"
"Wolverhampton City Council","http://opendatacommunities.org/id/metropolitan-district-council/wolverhampton","HOME BARGAINS","57.91","EIP Locality 2","5251","Provisions (Not for resale)","29/11/2018"
"Wolverhampton City Council","http://opendatacommunities.org/id/metropolitan-district-council/wolverhampton","HERON FOODS LTD","9.56","EIP Locality 2","5499","Provisions (Not for resale)","29/11/2018"
"Wolverhampton City Council","http://opendatacommunities.org/id/metropolitan-district-council/wolverhampton","000002200500000","250.00","Childrens with Disabilities Team","6011","No Recourse to Public Funds","29/11/2018"
"Wolverhampton City Council","http://opendatacommunities.org/id/metropolitan-district-council/wolverhampton","000002200500000","80.00","Childrens with Disabilities Team","6011","Section 17","29/11/2018"
"Wolverhampton City Council","http://opendatacommunities.org/id/metropolitan-district-council/wolverhampton","Virgin Trains","43.17","Audit Services","4112","Public Transport","29/11/2018"
"Wolverhampton City Council","http://opendatacommunities.org/id/metropolitan-district-council/wolverhampton","Virgin Trains","193.00","Fostering Team & Allowances","4112","Public Transport","29/11/2018"
"Wolverhampton City Council","http://opendatacommunities.org/id/metropolitan-district-council/wolverhampton","BARCLAYS","100.00","Mental Health Assessment & Care Mgmt","6011","Financial Assistance In Exceptional Circ","29/11/2018"
"Wolverhampton City Council","http://opendatacommunities.org/id/metropolitan-district-council/wolverhampton","SPECSAVERSEVOUGB-","850.00","Eye Test Vouchers (HR)","8043","Services - Professional Fees","29/11/2018"
"Wolverhampton City Council","http://opendatacommunities.org/id/metropolitan-district-council/wolverhampton","SPECSAVERSEVOUGB-","850.00","Eye Test Vouchers (HR)","8043","Services - Professional Fees","29/11/2018"
"Wolverhampton City Council","http://opendatacommunities.org/id/metropolitan-district-council/wolverhampton","TVLICENSING.CO.UK","150.50","LAC Transitions Team","7392","Client Allowances","29/11/2018"
"Wolverhampton City Council","http://opendatacommunities.org/id/metropolitan-district-council/wolverhampton","CITY OF WOLVERHAMPTON","10.00","LAC Team","9399","Services - Fees and Charges","29/11/2018"
"Wolverhampton City Council","http://opendatacommunities.org/id/metropolitan-district-council/wolverhampton","ITUNES.COM/BILL","0.79","Strategic ICTS (ICT Serv Budget)","5735","Computing - Purchase of Software","29/11/2018"
"Wolverhampton City Council","http://opendatacommunities.org/id/metropolitan-district-council/wolverhampton","AMZN Mktp UK M099Z7L54","189.84","Strategic ICTS (ICT Serv Budget)","5942","Computing - Purchase of Hardware","29/11/2018"
"Wolverhampton City Council","http://opendatacommunities.org/id/metropolitan-district-council/wolverhampton","AMZN Mktp UK M05Z52LB4","189.84","Strategic ICTS (ICT Serv Budget)","5942","Computing - Purchase of Hardware","29/11/2018"
"Wolverhampton City Council","http://opendatacommunities.org/id/metropolitan-district-council/wolverhampton","VIKING","52.37","Archives","5111","Materials","29/11/2018"
"Wolverhampton City Council","http://opendatacommunities.org/id/metropolitan-district-council/wolverhampton","B&M RETAIL LTD","14.62","Bilston Town Hall","5310","Materials","29/11/2018"
"Wolverhampton City Council","http://opendatacommunities.org/id/metropolitan-district-council/wolverhampton","SCREWFIX WOLVERHAM","19.92","Culwell Street Depot","5211","R&M - Departmental planned (external)","29/11/2018"
"Wolverhampton City Council","http://opendatacommunities.org/id/metropolitan-district-council/wolverhampton","ICELAND","0.00","Carers Support","5411","Provisions (Not for resale)","29/11/2018"
"Wolverhampton City Council","http://opendatacommunities.org/id/metropolitan-district-council/wolverhampton","Amazon.co.uk M01CB5Z44","31.00","Technical Support","5969","Equipment - Purchase","29/11/2018"
"Wolverhampton City Council","http://opendatacommunities.org/id/metropolitan-district-council/wolverhampton","AMZN Mktp UK M08NR7LI4","5.82","Learning Technologies","5942","Books","29/11/2018"
"Wolverhampton City Council","http://opendatacommunities.org/id/metropolitan-district-council/wolverhampton","AMZN MKTP UK M07DI5LJ4","14.81","Environmental Protection","5942","Equipment - Purchase","29/11/2018"
"Wolverhampton City Council","http://opendatacommunities.org/id/metropolitan-district-council/wolverhampton","Amazon.co.uk M03LT8ZQ4","62.02","Environmental Crime and Consumer Protect","5969","Equipment - Purchase","29/11/2018"
"Wolverhampton City Council","http://opendatacommunities.org/id/metropolitan-district-council/wolverhampton","EB  SOCIAL HOUSING LAW","87.50","Central Training","7399","Training Expenses","29/11/2018"
"Wolverhampton City Council","http://opendatacommunities.org/id/metropolitan-district-council/wolverhampton","KENT COUNTY COUNCIL","100.00","Workforce Development","9399","Training Expenses","29/11/2018"
"Wolverhampton City Council","http://opendatacommunities.org/id/metropolitan-district-council/wolverhampton","Amazon.co.uk M02P06LJ4","41.75","Music Support Team","5969","Equipment - R & M","29/11/2018"
"Wolverhampton City Council","http://opendatacommunities.org/id/metropolitan-district-council/wolverhampton","WATKINS & DONCASTER","42.60","Northicote Farm","5399","Equipment - Purchase","29/11/2018"
"Wolverhampton City Council","http://opendatacommunities.org/id/metropolitan-district-council/wolverhampton","Amazon.co.uk M044A1444","19.48","Northicote Farm","5969","Equipment - Purchase","29/11/2018"
"Wolverhampton City Council","http://opendatacommunities.org/id/metropolitan-district-council/wolverhampton","HOME BARGAINS WOLVERHA","30.22","Upper Pendeford Farm Childrens Home","5251","Equipment - Purchase","28/11/2018"
"Wolverhampton City Council","http://opendatacommunities.org/id/metropolitan-district-council/wolverhampton","ASDA GROCERIES ONLINE","46.40","Upper Pendeford Farm Childrens Home","5411","Provisions (Not for resale)","28/11/2018"
"Wolverhampton City Council","http://opendatacommunities.org/id/metropolitan-district-council/wolverhampton","SYMBOLS WORLDWIDE LTD","229.50","Language Studies Delivery Area","5734","Computing - Purchase of Software","28/11/2018"
"Wolverhampton City Council","http://opendatacommunities.org/id/metropolitan-district-council/wolverhampton","WOLVES FC","25.00","Archives","7997","Books","28/11/2018"
"Wolverhampton City Council","http://opendatacommunities.org/id/metropolitan-district-council/wolverhampton","WATERSTONES","15.99","Archives","5942","Books","28/11/2018"
"Wolverhampton City Council","http://opendatacommunities.org/id/metropolitan-district-council/wolverhampton","THE ENTERTAINER 15","37.47","Headstart - Employability","5945","Equipment - Purchase","28/11/2018"
"Wolverhampton City Council","http://opendatacommunities.org/id/metropolitan-district-council/wolverhampton","AMZN Mktp UK M06M51OP4","19.16","Headstart - Employability","5942","Equipment - Purchase","28/11/2018"
"Wolverhampton City Council","http://opendatacommunities.org/id/metropolitan-district-council/wolverhampton","POUNDSTRETCHER 147","74.87","Bilston Town Hall","5714","Materials","28/11/2018"
"Wolverhampton City Council","http://opendatacommunities.org/id/metropolitan-district-council/wolverhampton","WWW.UK.INSIGHT.COM","77.98","Revenues","5964","Equipment - Purchase","28/11/2018"
"Wolverhampton City Council","http://opendatacommunities.org/id/metropolitan-district-council/wolverhampton","AMZN Mktp UK M05J95ON4","43.98","SEN Sensory Inclusion","5942","Equipment - Purchase","28/11/2018"
"Wolverhampton City Council","http://opendatacommunities.org/id/metropolitan-district-council/wolverhampton","WIX.COM","93.13","Technical Support","5968","Subscriptions","28/11/2018"
"Wolverhampton City Council","http://opendatacommunities.org/id/metropolitan-district-council/wolverhampton","Wix.com","102.00","Technical Support","5817","Computing - Purchase of Software","28/11/2018"
"Wolverhampton City Council","http://opendatacommunities.org/id/metropolitan-district-council/wolverhampton","Trainline","104.40","Strategic Director Place","4112","Public Transport","28/11/2018"
"Wolverhampton City Council","http://opendatacommunities.org/id/metropolitan-district-council/wolverhampton","MARKS&SPENCER PLC SACA","7.50","Civic Centre Catering","5411","Provisions (Not for resale)","28/11/2018"
"Wolverhampton City Council","http://opendatacommunities.org/id/metropolitan-district-council/wolverhampton","THE COAL AUTHORITY","159.67","Disposal Costs","9399","Services - Fees and Charges","28/11/2018"
"Wolverhampton City Council","http://opendatacommunities.org/id/metropolitan-district-council/wolverhampton","B&M RETAIL","219.81","Bilston Town Hall","5310","Materials","28/11/2018"
"Wolverhampton City Council","http://opendatacommunities.org/id/metropolitan-district-council/wolverhampton","Trainline","51.59","CIN/CP Social Work Unit - Area 4","4112","Section 17","28/11/2018"
"Wolverhampton City Council","http://opendatacommunities.org/id/metropolitan-district-council/wolverhampton","HOMEBASE LTD 103","391.00","Bilston Town Hall","5211","Materials","28/11/2018"
"Wolverhampton City Council","http://opendatacommunities.org/id/metropolitan-district-council/wolverhampton","WWW.DUTCHBULBS.CO.UK","53.15","Landscape","5261","Materials","28/11/2018"
"Wolverhampton City Council","http://opendatacommunities.org/id/metropolitan-district-council/wolverhampton","Virgin Trains","153.00","Adoption and Residence Team & Allowances","4112","Public Transport","28/11/2018"
"Wolverhampton City Council","http://opendatacommunities.org/id/metropolitan-district-council/wolverhampton","PAYPAL  FAROL LTD","22.46","Northicote Farm","8999","Equipment - Purchase","28/11/2018"
"Wolverhampton City Council","http://opendatacommunities.org/id/metropolitan-district-council/wolverhampton","PAYPAL  TRADESUPPLI","11.65","Northicote Farm","5932","Equipment - Purchase","28/11/2018"
"Wolverhampton City Council","http://opendatacommunities.org/id/metropolitan-district-council/wolverhampton","PAYPAL  ANGLIANLEPI","33.33","Northicote Farm","5169","Equipment - Purchase","28/11/2018"
"Wolverhampton City Council","http://opendatacommunities.org/id/metropolitan-district-council/wolverhampton","WWW.ARGOS.CO.UK","155.95","CIN/CP Social Work Unit - Area 8","5310","Section 17","28/11/2018"
"Wolverhampton City Council","http://opendatacommunities.org/id/metropolitan-district-council/wolverhampton","AXMINSTER.CO.UK","20.62","Technician","5211","Equipment - Purchase","28/11/2018"
"Wolverhampton City Council","http://opendatacommunities.org/id/metropolitan-district-council/wolverhampton","AVT IMPORTS","170.60","Visitor Economy - Development","5085","Equipment - Purchase","28/11/2018"
"Wolverhampton City Council","http://opendatacommunities.org/id/metropolitan-district-council/wolverhampton","WM MORRISON FOOD.COM","109.66","Discretionary Fund","5411","Materials","28/11/2018"
"Wolverhampton City Council","http://opendatacommunities.org/id/metropolitan-district-council/wolverhampton","TESCO STORES 5194","61.48","Towers Outdoor Education Centre","5411","Provisions (Not for resale)","28/11/2018"
"Wolverhampton City Council","http://opendatacommunities.org/id/metropolitan-district-council/wolverhampton","000002200500000","240.00","CIN/CP Social Work Unit - Area 6","6011","Section 17","28/11/2018"
"Wolverhampton City Council","http://opendatacommunities.org/id/metropolitan-district-council/wolverhampton","AMZN MKTP UK M05WW6OX4","4.86","Communications & Marketing - General","5942","Books","28/11/2018"
"Wolverhampton City Council","http://opendatacommunities.org/id/metropolitan-district-council/wolverhampton","SOLICTORS","317.98","Corporate Budgets","5192","Books","28/11/2018"
"Wolverhampton City Council","http://opendatacommunities.org/id/metropolitan-district-council/wolverhampton","AMZN MKTP UK M08V73O14","11.10","Communications & Marketing - General","5942","Books","28/11/2018"
"Wolverhampton City Council","http://opendatacommunities.org/id/metropolitan-district-council/wolverhampton","ASDA SUPERSTORE","7.37","Education And Access","5411","Hospitality","28/11/2018"
"Wolverhampton City Council","http://opendatacommunities.org/id/metropolitan-district-council/wolverhampton","ARGOS RETAIL GROUP","27.49","Fostering Team & Allowances","5310","Equipment - Purchase","28/11/2018"
"Wolverhampton City Council","http://opendatacommunities.org/id/metropolitan-district-council/wolverhampton","AMZN MKTP UK M04TS4OA4","84.72","Communications & Marketing - General","5942","Books","28/11/2018"
"Wolverhampton City Council","http://opendatacommunities.org/id/metropolitan-district-council/wolverhampton","AMZN MKTP UK M034N9CN4","89.96","Communications & Marketing - General","5942","Books","28/11/2018"
"Wolverhampton City Council","http://opendatacommunities.org/id/metropolitan-district-council/wolverhampton","AMZN MKTP UK M03GO8O04","8.99","Communications & Marketing - General","5942","Books","28/11/2018"
"Wolverhampton City Council","http://opendatacommunities.org/id/metropolitan-district-council/wolverhampton","MY.MORRISONS.COM","16.67","Headstart Phase 3","5411","Provisions (Not for resale)","28/11/2018"
"Wolverhampton City Council","http://opendatacommunities.org/id/metropolitan-district-council/wolverhampton","MICHAELS DRINKSTOP","15.82","Mayoral Expenses","5921","Hospitality","28/11/2018"
"Wolverhampton City Council","http://opendatacommunities.org/id/metropolitan-district-council/wolverhampton","ASDA SUPERSTORE","32.03","Mayoral Expenses","5411","Provisions (Not for resale)","28/11/2018"
"Wolverhampton City Council","http://opendatacommunities.org/id/metropolitan-district-council/wolverhampton","MARKS&SPENCER PLC SACA","21.50","Old Hall Street Main","5411","Provisions (Not for resale)","28/11/2018"
"Wolverhampton City Council","http://opendatacommunities.org/id/metropolitan-district-council/wolverhampton","WOLVERHAMPTON T/O","6.42","Cemeteries","4112","Public Transport","28/11/2018"
"Wolverhampton City Council","http://opendatacommunities.org/id/metropolitan-district-council/wolverhampton","AMZN Mktp UK M08O644L4","189.84","Strategic ICTS (ICT Serv Budget)","5942","Computing - Purchase of Hardware","28/11/2018"
"Wolverhampton City Council","http://opendatacommunities.org/id/metropolitan-district-council/wolverhampton","WOLVERHAMPTON T/O","11.17","Cemeteries","4112","Public Transport","28/11/2018"
"Wolverhampton City Council","http://opendatacommunities.org/id/metropolitan-district-council/wolverhampton","POST OFFICE COUNTER","50.00","System Leadership","9402","Educ Trips, Holidays, Outings, Activity","28/11/2018"
"Wolverhampton City Council","http://opendatacommunities.org/id/metropolitan-district-council/wolverhampton","AMZN Mktp UK M06OH64Y4","189.84","Strategic ICTS (ICT Serv Budget)","5942","Computing - Purchase of Hardware","28/11/2018"
"Wolverhampton City Council","http://opendatacommunities.org/id/metropolitan-district-council/wolverhampton","AMZN Mktp UK M04OL14Y4","93.92","Strategic ICTS (ICT Serv Budget)","5942","Computing - Purchase of Hardware","28/11/2018"
"Wolverhampton City Council","http://opendatacommunities.org/id/metropolitan-district-council/wolverhampton","AMZN Mktp UK M03OV74H4","189.84","Strategic ICTS (ICT Serv Budget)","5942","Computing - Purchase of Hardware","28/11/2018"
"Wolverhampton City Council","http://opendatacommunities.org/id/metropolitan-district-council/wolverhampton","AMZN Mktp UK M09C954L4","15.65","Strategic ICTS (ICT Serv Budget)","5942","Computing - Purchase of Hardware","28/11/2018"
"Wolverhampton City Council","http://opendatacommunities.org/id/metropolitan-district-council/wolverhampton","AMZN Mktp UK M09CE14Q4","88.68","Strategic ICTS (ICT Serv Budget)","5942","Computing - Purchase of Hardware","28/11/2018"
"Wolverhampton City Council","http://opendatacommunities.org/id/metropolitan-district-council/wolverhampton","AMZN Mktp UK M06DF8424","88.68","Strategic ICTS (ICT Serv Budget)","5942","Computing - Purchase of Hardware","28/11/2018"
"Wolverhampton City Council","http://opendatacommunities.org/id/metropolitan-district-council/wolverhampton","AMZN Mktp UK M04DM04V4","88.68","Strategic ICTS (ICT Serv Budget)","5942","Books","28/11/2018"
"Wolverhampton City Council","http://opendatacommunities.org/id/metropolitan-district-council/wolverhampton","LAPTOP-LCD-SCREEN","399.34","Strategic ICTS (ICT Serv Budget)","5732","Equipment - Purchase","28/11/2018"
"Wolverhampton City Council","http://opendatacommunities.org/id/metropolitan-district-council/wolverhampton","AMZN Mktp UK M02CV34S4","88.68","Strategic ICTS (ICT Serv Budget)","5942","Computing - Purchase of Hardware","28/11/2018"
"Wolverhampton City Council","http://opendatacommunities.org/id/metropolitan-district-council/wolverhampton","AMZN Mktp UK M01C994Y4","88.68","Strategic ICTS (ICT Serv Budget)","5942","Computing - Purchase of Hardware","28/11/2018"
"Wolverhampton City Council","http://opendatacommunities.org/id/metropolitan-district-council/wolverhampton","AMZN Mktp UK M00C784N4","88.68","Strategic ICTS (ICT Serv Budget)","5942","Computing - Purchase of Hardware","28/11/2018"
"Wolverhampton City Council","http://opendatacommunities.org/id/metropolitan-district-council/wolverhampton","NBNI  181126161107237","20.38","Archives","5192","Books","27/11/2018"
"Wolverhampton City Council","http://opendatacommunities.org/id/metropolitan-district-council/wolverhampton","THE ENTERTAINER 15","12.49","Headstart - Employability","5945","Equipment - Purchase","27/11/2018"
"Wolverhampton City Council","http://opendatacommunities.org/id/metropolitan-district-council/wolverhampton","HOMEBASE LTD 103","140.00","Bilston Town Hall","5211","Materials","27/11/2018"
"Wolverhampton City Council","http://opendatacommunities.org/id/metropolitan-district-council/wolverhampton","PAY WEEKLY","200.00","EIP Locality 3","5713","Grant Payments","27/11/2018"
"Wolverhampton City Council","http://opendatacommunities.org/id/metropolitan-district-council/wolverhampton","B & Q 1243","9.80","Learning Disabilities Management","5211","Materials","27/11/2018"
"Wolverhampton City Council","http://opendatacommunities.org/id/metropolitan-district-council/wolverhampton","AMZN Mktp UK M04WV0C94","16.99","Environmental Crime and Consumer Protect","5942","Equipment - Purchase","27/11/2018"
"Wolverhampton City Council","http://opendatacommunities.org/id/metropolitan-district-council/wolverhampton","WILKO RETAIL LIMIT","3.00","Car Parks Operational Staff","5722","Equipment - Purchase","27/11/2018"
"Wolverhampton City Council","http://opendatacommunities.org/id/metropolitan-district-council/wolverhampton","ASDA GROCERIES ONLINE","43.49","Ernest Bold Court","5411","Provisions (Not for resale)","27/11/2018"
"Wolverhampton City Council","http://opendatacommunities.org/id/metropolitan-district-council/wolverhampton","SAINSBURYS SACAT (2340","12.55","Civic Centre Catering","5411","Provisions (Not for resale)","27/11/2018"
"Wolverhampton City Council","http://opendatacommunities.org/id/metropolitan-district-council/wolverhampton","TOOLSTATION LTD","23.06","Education Catering - General Overheads","5251","Equipment - Purchase","27/11/2018"
"Wolverhampton City Council","http://opendatacommunities.org/id/metropolitan-district-council/wolverhampton","LES MILLS FITNESS","225.00","Central Training","8220","Training Expenses","27/11/2018"
"Wolverhampton City Council","http://opendatacommunities.org/id/metropolitan-district-council/wolverhampton","Amazon.co.uk M81IS3Y34","49.50","Music Support Team","5969","Equipment - R & M","27/11/2018"
"Wolverhampton City Council","http://opendatacommunities.org/id/metropolitan-district-council/wolverhampton","Trainline","9.92","CIN/CP Social Work Unit - Area 8","4112","Section 17","27/11/2018"
"Wolverhampton City Council","http://opendatacommunities.org/id/metropolitan-district-council/wolverhampton","Trainline","9.92","CIN/CP Social Work Unit - Area 8","4112","Section 17","27/11/2018"
"Wolverhampton City Council","http://opendatacommunities.org/id/metropolitan-district-council/wolverhampton","AMZN Mktp UK M09VH6CR4","24.92","Planning","5942","Equipment - Purchase","27/11/2018"
"Wolverhampton City Council","http://opendatacommunities.org/id/metropolitan-district-council/wolverhampton","CURRYS ONLINE","9.99","Adult Services - East","5732","Equipment - Purchase","27/11/2018"
"Wolverhampton City Council","http://opendatacommunities.org/id/metropolitan-district-council/wolverhampton","CARVERS","59.60","Northicote Farm","5211","Materials","27/11/2018"
"Wolverhampton City Council","http://opendatacommunities.org/id/metropolitan-district-council/wolverhampton","Amazon Prime","-7.99","Communications & Marketing - General","5968","Subscriptions","27/11/2018"
"Wolverhampton City Council","http://opendatacommunities.org/id/metropolitan-district-council/wolverhampton","AMZN MKTP UK M89049YK4","6.76","Communications & Marketing - General","5942","Books","27/11/2018"
"Wolverhampton City Council","http://opendatacommunities.org/id/metropolitan-district-council/wolverhampton","AMZN MKTP UK M833R1YA4","41.98","Communications & Marketing - General","5942","Books","27/11/2018"
"Wolverhampton City Council","http://opendatacommunities.org/id/metropolitan-district-council/wolverhampton","ROYAL MAIL GROUP LTD","275.00","Wholly Owned Company - Operations","9402","Comms - Postage","27/11/2018"
"Wolverhampton City Council","http://opendatacommunities.org/id/metropolitan-district-council/wolverhampton","LGA","350.00","Corporate Budgets","5192","Books","27/11/2018"
"Wolverhampton City Council","http://opendatacommunities.org/id/metropolitan-district-council/wolverhampton","AMZN MKTP UK M81E93WN4","13.63","Communications & Marketing - General","5942","Books","27/11/2018"
"Wolverhampton City Council","http://opendatacommunities.org/id/metropolitan-district-council/wolverhampton","ARUN SANDS","59.00","LAC Transitions Team","7011","Client Allowances","27/11/2018"
"Wolverhampton City Council","http://opendatacommunities.org/id/metropolitan-district-council/wolverhampton","Trainline","189.66","Assistant Director - Public Health","4112","Public Transport","27/11/2018"
"Wolverhampton City Council","http://opendatacommunities.org/id/metropolitan-district-council/wolverhampton","Virgin Trains","143.00","LAC Team","4112","Public Transport","27/11/2018"
"Wolverhampton City Council","http://opendatacommunities.org/id/metropolitan-district-council/wolverhampton","Trainline","71.63","AES Staff Development","4112","Public Transport","27/11/2018"
"Wolverhampton City Council","http://opendatacommunities.org/id/metropolitan-district-council/wolverhampton","HUGHES","494.00","LAC Transitions Team","5732","Client Allowances","27/11/2018"
"Wolverhampton City Council","http://opendatacommunities.org/id/metropolitan-district-council/wolverhampton","WWW.SAFETYLIFTINGEAR.C","44.19","Towers Outdoor Education Centre","7394","Equipment - Purchase","27/11/2018"
"Wolverhampton City Council","http://opendatacommunities.org/id/metropolitan-district-council/wolverhampton","MATALAN","27.58","LAC Transitions Team","5691","Client Allowances","27/11/2018"
"Wolverhampton City Council","http://opendatacommunities.org/id/metropolitan-district-council/wolverhampton","Trainline","71.63","Revenues","4112","Public Transport","27/11/2018"
"Wolverhampton City Council","http://opendatacommunities.org/id/metropolitan-district-council/wolverhampton","WWW.CARESHOP.CO.UK","42.86","Ernest Bold Court","5999","Equipment - Purchase","27/11/2018"
"Wolverhampton City Council","http://opendatacommunities.org/id/metropolitan-district-council/wolverhampton","VENUE CATERING PAR","292.42","Mayoral Expenses","5811","Hospitality","27/11/2018"
"Wolverhampton City Council","http://opendatacommunities.org/id/metropolitan-district-council/wolverhampton","DEBENHAMS","900.00","Long Service Awards","5311","Gratuities","27/11/2018"
"Wolverhampton City Council","http://opendatacommunities.org/id/metropolitan-district-council/wolverhampton","T.A. HENN & SON LTD","150.00","Long Service Awards","5944","Gratuities","27/11/2018"
"Wolverhampton City Council","http://opendatacommunities.org/id/metropolitan-district-council/wolverhampton","MILLERS JEWELLERS","900.00","Long Service Awards","5944","Gratuities","27/11/2018"
"Wolverhampton City Council","http://opendatacommunities.org/id/metropolitan-district-council/wolverhampton","J J RUDELL & CO LT","300.00","Long Service Awards","5944","Gratuities","27/11/2018"
"Wolverhampton City Council","http://opendatacommunities.org/id/metropolitan-district-council/wolverhampton","LOYD 37 CHURCH STREET","100.00","EIP Locality 8","6011","Grant Payments","27/11/2018"
"Wolverhampton City Council","http://opendatacommunities.org/id/metropolitan-district-council/wolverhampton","Trainline","157.00","Safeguarding Admin Resource","4112","Public Transport","27/11/2018"
"Wolverhampton City Council","http://opendatacommunities.org/id/metropolitan-district-council/wolverhampton","WWW.ARGOS.CO.UK","37.44","LAC Transitions Team","5310","Equipment - Purchase","26/11/2018"
"Wolverhampton City Council","http://opendatacommunities.org/id/metropolitan-district-council/wolverhampton","SPORTSDIRECT 231","49.99","LAC Transitions Team","5941","Client Allowances","26/11/2018"
"Wolverhampton City Council","http://opendatacommunities.org/id/metropolitan-district-council/wolverhampton","ARGOS LTD","8.33","LAC Transitions Team","5310","Accommodation Costs","26/11/2018"
"Wolverhampton City Council","http://opendatacommunities.org/id/metropolitan-district-council/wolverhampton","SAINSBURYS 2040","5.00","LAC Transitions Team","5411","Client Allowances","26/11/2018"
"Wolverhampton City Council","http://opendatacommunities.org/id/metropolitan-district-council/wolverhampton","Central Taxis Limited","6.30","EIP Locality 4","4121","Grant Payments","26/11/2018"
"Wolverhampton City Council","http://opendatacommunities.org/id/metropolitan-district-council/wolverhampton","Central Taxis Limited","6.30","EIP Locality 4","4121","Grant Payments","26/11/2018"
"Wolverhampton City Council","http://opendatacommunities.org/id/metropolitan-district-council/wolverhampton","GOOGLE  ADS9680351324","500.00","Communications & Marketing - General","5968","Subscriptions","26/11/2018"
"Wolverhampton City Council","http://opendatacommunities.org/id/metropolitan-district-council/wolverhampton","CO-OP GROUP 070362","2.20","Mayoral Expenses","5411","Hospitality","26/11/2018"
"Wolverhampton City Council","http://opendatacommunities.org/id/metropolitan-district-council/wolverhampton","ROYAL BK OF SCOTLAND","300.00","B-Safe","6011","Financial Assistance In Exceptional Circ","26/11/2018"
"Wolverhampton City Council","http://opendatacommunities.org/id/metropolitan-district-council/wolverhampton","MARKS&SPENCER PLC SACA","51.80","Admin & Support","5411","Provisions (Not for resale)","26/11/2018"
"Wolverhampton City Council","http://opendatacommunities.org/id/metropolitan-district-council/wolverhampton","Trainline","71.63","Admin & Support","4112","Public Transport","26/11/2018"
"Wolverhampton City Council","http://opendatacommunities.org/id/metropolitan-district-council/wolverhampton","WISEPOPS","7.47","City Direct","7372","Computing - Purchase of Software","26/11/2018"
"Wolverhampton City Council","http://opendatacommunities.org/id/metropolitan-district-council/wolverhampton","PREMIER INN","378.00","Adoption and Residence Team & Allowances","3811","Accommodation Costs","26/11/2018"
"Wolverhampton City Council","http://opendatacommunities.org/id/metropolitan-district-council/wolverhampton","POST OFFICE COUNTER","14.60","LAC Team","9402","Comms - Postage","26/11/2018"
"Wolverhampton City Council","http://opendatacommunities.org/id/metropolitan-district-council/wolverhampton","ARGOS RETAIL GROUP","33.33","LAC Transitions Team","5310","Client Allowances","26/11/2018"
"Wolverhampton City Council","http://opendatacommunities.org/id/metropolitan-district-council/wolverhampton","ROYAL BK OF SCOTLAND","200.00","CIN/CP Social Work Unit - Area 6","6011","No Recourse to Public Funds","26/11/2018"
"Wolverhampton City Council","http://opendatacommunities.org/id/metropolitan-district-council/wolverhampton","Amazon.co.uk M80TD5UV4","39.00","Strategic ICTS (ICT Serv Budget)","5969","Equipment - Purchase","26/11/2018"
"Wolverhampton City Council","http://opendatacommunities.org/id/metropolitan-district-council/wolverhampton","ASDA GROCERIES ONLINE","-1.50","Upper Pendeford Farm Childrens Home","5411","Provisions (Not for resale)","26/11/2018"
"Wolverhampton City Council","http://opendatacommunities.org/id/metropolitan-district-council/wolverhampton","ASDA GROCERIES ONLINE","197.16","Upper Pendeford Farm Childrens Home","5411","Provisions (Not for resale)","26/11/2018"
"Wolverhampton City Council","http://opendatacommunities.org/id/metropolitan-district-council/wolverhampton","Central Taxis Limited","27.50","LAC Team","4121","Client Transport","26/11/2018"
"Wolverhampton City Council","http://opendatacommunities.org/id/metropolitan-district-council/wolverhampton","Central Taxis Limited","25.40","LAC Team","4121","Client Transport","26/11/2018"
"Wolverhampton City Council","http://opendatacommunities.org/id/metropolitan-district-council/wolverhampton","Central Taxis Limited","26.30","LAC Team","4121","Client Transport","26/11/2018"
"Wolverhampton City Council","http://opendatacommunities.org/id/metropolitan-district-council/wolverhampton","Virgin Trains","161.55","LAC Team","4112","Client Transport","26/11/2018"
"Wolverhampton City Council","http://opendatacommunities.org/id/metropolitan-district-council/wolverhampton","Virgin Trains","107.70","LAC Team","4112","Client Transport","26/11/2018"
"Wolverhampton City Council","http://opendatacommunities.org/id/metropolitan-district-council/wolverhampton","ASDA GROCERIES ONLINE","-0.03","Creative Studies Delivery Area","5411","Provisions (Not for resale)","26/11/2018"
"Wolverhampton City Council","http://opendatacommunities.org/id/metropolitan-district-council/wolverhampton","ASDA GROCERIES ONLINE","30.88","Creative Studies Delivery Area","5411","Provisions (Not for resale)","26/11/2018"
"Wolverhampton City Council","http://opendatacommunities.org/id/metropolitan-district-council/wolverhampton","B&M RETAIL","42.47","LAC Transitions Team","5310","Client Allowances","26/11/2018"
"Wolverhampton City Council","http://opendatacommunities.org/id/metropolitan-district-council/wolverhampton","AMZN Mktp UK M89V942C4","66.63","Creative Studies Delivery Area","5942","Equipment - Purchase","26/11/2018"
"Wolverhampton City Council","http://opendatacommunities.org/id/metropolitan-district-council/wolverhampton","AMZN Mktp UK M823S7U64","10.62","EIP Locality 1","5942","Computing - Purchase of Hardware","26/11/2018"
"Wolverhampton City Council","http://opendatacommunities.org/id/metropolitan-district-council/wolverhampton","DRI Nuance","240.00","EIP Locality 1","5734","Computing - Purchase of Software","26/11/2018"
"Wolverhampton City Council","http://opendatacommunities.org/id/metropolitan-district-council/wolverhampton","AMZN MKTP UK M89H882P4","54.98","MASH","5942","Equipment - Health and Safety","26/11/2018"
"Wolverhampton City Council","http://opendatacommunities.org/id/metropolitan-district-council/wolverhampton","Cross Country Trains","9.10","Head of Strategic Commissioning � People","4112","Public Transport","26/11/2018"
"Wolverhampton City Council","http://opendatacommunities.org/id/metropolitan-district-council/wolverhampton","Cross Country Trains","9.10","Head of Strategic Commissioning � People","4112","Public Transport","26/11/2018"
"Wolverhampton City Council","http://opendatacommunities.org/id/metropolitan-district-council/wolverhampton","ASDA GROCERIES ONLINE","5.00","Ernest Bold Court","5411","Provisions (Not for resale)","26/11/2018"
"Wolverhampton City Council","http://opendatacommunities.org/id/metropolitan-district-council/wolverhampton","DRI Nuance","119.99","EIP Locality 1","5734","Computing - Purchase of Software","26/11/2018"
"Wolverhampton City Council","http://opendatacommunities.org/id/metropolitan-district-council/wolverhampton","ASDA GROCERIES ONLINE","44.74","Ernest Bold Court","5411","Provisions (Not for resale)","26/11/2018"
"Wolverhampton City Council","http://opendatacommunities.org/id/metropolitan-district-council/wolverhampton","UNTOUCHABLES","8.49","Education Catering - General Overheads","5231","Materials","26/11/2018"
"Wolverhampton City Council","http://opendatacommunities.org/id/metropolitan-district-council/wolverhampton","PAYPAL  LANDSCAPEIN","125.00","Central Training","8398","Training Expenses","26/11/2018"
"Wolverhampton City Council","http://opendatacommunities.org/id/metropolitan-district-council/wolverhampton","Amazon.co.uk M86B05974","42.92","Ernest Bold Court","5969","Stationery","26/11/2018"
"Wolverhampton City Council","http://opendatacommunities.org/id/metropolitan-district-council/wolverhampton","WEST MID TRAVEL","182.25","Community Pathways","4131","Public Transport","26/11/2018"
"Wolverhampton City Council","http://opendatacommunities.org/id/metropolitan-district-council/wolverhampton","Trainline","-13.00","CIN/CP Social Work Unit - Area 4","4112","Section 17","26/11/2018"
"Wolverhampton City Council","http://opendatacommunities.org/id/metropolitan-district-council/wolverhampton","Trainline","33.70","CIN/CP Social Work Unit - Area 4","4112","Section 17","26/11/2018"
"Wolverhampton City Council","http://opendatacommunities.org/id/metropolitan-district-council/wolverhampton","Amazon.co.uk M80WD39W4","4.95","Music Support Team","5969","Equipment - R & M","26/11/2018"
"Wolverhampton City Council","http://opendatacommunities.org/id/metropolitan-district-council/wolverhampton","WWW.STUDIO-MUSIC.C","31.95","Music Support Team","2741","Equipment - R & M","26/11/2018"
"Wolverhampton City Council","http://opendatacommunities.org/id/metropolitan-district-council/wolverhampton","Virgin Trains","-15.60","Planning","4112","Public Transport","26/11/2018"
"Wolverhampton City Council","http://opendatacommunities.org/id/metropolitan-district-council/wolverhampton","Virgin Trains","-54.60","Planning","4112","Public Transport","26/11/2018"
"Wolverhampton City Council","http://opendatacommunities.org/id/metropolitan-district-council/wolverhampton","PAYPAL  INTERNETFUS","-6.49","Northicote Farm","5941","Equipment - Purchase","26/11/2018"
"Wolverhampton City Council","http://opendatacommunities.org/id/metropolitan-district-council/wolverhampton","HOMEBASE LTD 103","56.00","Civic Centre","5211","Materials","23/11/2018"
"Wolverhampton City Council","http://opendatacommunities.org/id/metropolitan-district-council/wolverhampton","HOMEBASE LTD 103","56.00","Civic Centre","5211","Materials","23/11/2018"
"Wolverhampton City Council","http://opendatacommunities.org/id/metropolitan-district-council/wolverhampton","HOMEBASE LTD 103","56.00","Civic Centre","5211","Materials","23/11/2018"
"Wolverhampton City Council","http://opendatacommunities.org/id/metropolitan-district-council/wolverhampton","AMZN Mktp UK M84SZ0DU4","70.00","Civic Centre","5942","Equipment - Purchase","23/11/2018"
"Wolverhampton City Council","http://opendatacommunities.org/id/metropolitan-district-council/wolverhampton","AMZN Mktp UK M84SR5D84","70.00","Civic Centre","5942","Equipment - Purchase","23/11/2018"
"Wolverhampton City Council","http://opendatacommunities.org/id/metropolitan-district-council/wolverhampton","AMZN Mktp UK M84SF7DS4","17.50","Civic Centre","5942","Equipment - Purchase","23/11/2018"
"Wolverhampton City Council","http://opendatacommunities.org/id/metropolitan-district-council/wolverhampton","AMZN Mktp UK M83SC6DC4","70.00","Civic Centre","5942","Equipment - Hire","23/11/2018"
"Wolverhampton City Council","http://opendatacommunities.org/id/metropolitan-district-council/wolverhampton","AMZN Mktp UK M82S82DR4","70.00","Civic Centre","5942","Equipment - Purchase","23/11/2018"
"Wolverhampton City Council","http://opendatacommunities.org/id/metropolitan-district-council/wolverhampton","WOLVERHAMPTON T/O","5.90","Art Gallery","4112","Public Transport","23/11/2018"
"Wolverhampton City Council","http://opendatacommunities.org/id/metropolitan-district-council/wolverhampton","WP-CENTRAL TAXIS L","-44.00","LAC Team","4121","Client Transport","23/11/2018"
"Wolverhampton City Council","http://opendatacommunities.org/id/metropolitan-district-council/wolverhampton","Trainline","35.87","Older People Assessment & Care Mgmt","4112","Public Transport","23/11/2018"
"Wolverhampton City Council","http://opendatacommunities.org/id/metropolitan-district-council/wolverhampton","EB  WORKSHOP SPEED REA","224.95","Member Training","7399","Training Expenses","23/11/2018"
"Wolverhampton City Council","http://opendatacommunities.org/id/metropolitan-district-council/wolverhampton","J VAN VLIET BIRMINGHAM","42.45","Creative Studies Delivery Area","5399","Materials for resale","23/11/2018"
"Wolverhampton City Council","http://opendatacommunities.org/id/metropolitan-district-council/wolverhampton","SAINSBURYS (2340)","25.00","Duke Street Bungalows","5411","R4010","23/11/2018"
"Wolverhampton City Council","http://opendatacommunities.org/id/metropolitan-district-council/wolverhampton","Amazon.co.uk M82YD5SO4","22.19","Document Centre - General","5969","Stationery","23/11/2018"
"Wolverhampton City Council","http://opendatacommunities.org/id/metropolitan-district-council/wolverhampton","WWW.WMCA.CO.UK","56.50","IMPACT","9399","Services - Fees and Charges","23/11/2018"
"Wolverhampton City Council","http://opendatacommunities.org/id/metropolitan-district-council/wolverhampton","CUMMINGS BROTHERS LOCK","5.00","Caretakers Community Centre","7399","Equipment - Purchase","23/11/2018"
"Wolverhampton City Council","http://opendatacommunities.org/id/metropolitan-district-council/wolverhampton","CUMMINGS BROTHERS LOCK","14.17","Caretakers Community Centre","7399","Equipment - Purchase","23/11/2018"
"Wolverhampton City Council","http://opendatacommunities.org/id/metropolitan-district-council/wolverhampton","CUMMINGS BROTHERS LOCK","18.33","Caretakers Community Centre","7399","Equipment - Purchase","23/11/2018"
"Wolverhampton City Council","http://opendatacommunities.org/id/metropolitan-district-council/wolverhampton","CUMMINGS BROTHERS LOCK","1.75","Caretakers Community Centre","7399","Equipment - Purchase","23/11/2018"
"Wolverhampton City Council","http://opendatacommunities.org/id/metropolitan-district-council/wolverhampton","PAYPAL  IRG EUROPE","189.95","Head of Service Specialist Int Support","5941","Equipment - Purchase","23/11/2018"
"Wolverhampton City Council","http://opendatacommunities.org/id/metropolitan-district-council/wolverhampton","PAYPAL  MRSLEEPSBED","171.96","Head of Service Specialist Int Support","5719","Equipment - Purchase","23/11/2018"
"Wolverhampton City Council","http://opendatacommunities.org/id/metropolitan-district-council/wolverhampton","WOLVERHAMPTON SST","9.30","Research & Development","4112","Public Transport","23/11/2018"
"Wolverhampton City Council","http://opendatacommunities.org/id/metropolitan-district-council/wolverhampton","WWW.HUGHESELECTRIC","183.32","LAC Transitions Team","5732","Client Allowances","23/11/2018"
"Wolverhampton City Council","http://opendatacommunities.org/id/metropolitan-district-council/wolverhampton","000002200500000","250.00","Childrens with Disabilities Team","6011","Financial Assistance In Exceptional Circ","23/11/2018"
"Wolverhampton City Council","http://opendatacommunities.org/id/metropolitan-district-council/wolverhampton","POST OFFICE COUNTER","7.30","Adoption and Residence Team & Allowances","9402","Comms - Postage","23/11/2018"
"Wolverhampton City Council","http://opendatacommunities.org/id/metropolitan-district-council/wolverhampton","WOLVERHAMPTON CC","6.50","Towers Outdoor Education Centre","7523","Equipment - Purchase","23/11/2018"
"Wolverhampton City Council","http://opendatacommunities.org/id/metropolitan-district-council/wolverhampton","Trainline","59.42","Electoral Registration","4112","Public Transport","23/11/2018"
"Wolverhampton City Council","http://opendatacommunities.org/id/metropolitan-district-council/wolverhampton","STAFFORDSHIRE COUNTY C","12.00","Electoral Registration","9399","Stationery","23/11/2018"
"Wolverhampton City Council","http://opendatacommunities.org/id/metropolitan-district-council/wolverhampton","BLOXWICH  SST","6.00","Economic Development","4112","Public Transport","23/11/2018"
"Wolverhampton City Council","http://opendatacommunities.org/id/metropolitan-district-council/wolverhampton","POST OFFICE COUNTER","192.00","Fostering Team & Allowances","9402","Comms - Postage","23/11/2018"
"Wolverhampton City Council","http://opendatacommunities.org/id/metropolitan-district-council/wolverhampton","NCP WOLVERHAMPTON RAIL","12.00","Service Development Team","7523","Car Allowances","23/11/2018"
"Wolverhampton City Council","http://opendatacommunities.org/id/metropolitan-district-council/wolverhampton","WOLVERHAMPTON SST","7.80","Service Development Team","4112","Public Transport","23/11/2018"
"Wolverhampton City Council","http://opendatacommunities.org/id/metropolitan-district-council/wolverhampton","iStock.com","310.00","Communications & Marketing - General","7333","Marketing \ Non-staff advertising","23/11/2018"
"Wolverhampton City Council","http://opendatacommunities.org/id/metropolitan-district-council/wolverhampton","Amazon Prime M893X1DV4","6.66","Communications & Marketing - General","5968","Subscriptions","23/11/2018"
"Wolverhampton City Council","http://opendatacommunities.org/id/metropolitan-district-council/wolverhampton","CITY OF WOLVERHAMPTON","120.00","LAC Team","9399","Services - Fees and Charges","23/11/2018"
"Wolverhampton City Council","http://opendatacommunities.org/id/metropolitan-district-council/wolverhampton","PREMIER INN","57.00","LAC Team","3811","Accommodation Costs","23/11/2018"
"Wolverhampton City Council","http://opendatacommunities.org/id/metropolitan-district-council/wolverhampton","Virgin Trains","38.50","LAC Team","4112","Public Transport","23/11/2018"
"Wolverhampton City Council","http://opendatacommunities.org/id/metropolitan-district-council/wolverhampton","ARRIVA TRAINS WALE","7.80","Curatorial - Cultural Learning","4112","Public Transport","23/11/2018"
"Wolverhampton City Council","http://opendatacommunities.org/id/metropolitan-district-council/wolverhampton","Amazon.co.uk M86IK1D44","16.98","Archives","5969","Books","23/11/2018"
"Wolverhampton City Council","http://opendatacommunities.org/id/metropolitan-district-council/wolverhampton","AMZN MKTP UK M83MC5SE4","15.37","Learning Disabilities Management","5942","Equipment - Purchase","23/11/2018"
"Wolverhampton City Council","http://opendatacommunities.org/id/metropolitan-district-council/wolverhampton","ARGOS RETAIL GROUP","29.99","MASH","5310","No Recourse to Public Funds","23/11/2018"
"Wolverhampton City Council","http://opendatacommunities.org/id/metropolitan-district-council/wolverhampton","AMZN Mktp UK M836V6DQ4","34.97","SEN Sensory Inclusion","5942","Equipment - Purchase","23/11/2018"
"Wolverhampton City Council","http://opendatacommunities.org/id/metropolitan-district-council/wolverhampton","B&M RETAIL","51.45","Civic Centre","5310","Equipment - Purchase","23/11/2018"
"Wolverhampton City Council","http://opendatacommunities.org/id/metropolitan-district-council/wolverhampton","HOMEBASE LTD 103","56.00","Civic Centre","5211","Materials","23/11/2018"
"Wolverhampton City Council","http://opendatacommunities.org/id/metropolitan-district-council/wolverhampton","HOMEBASE LTD 103","56.00","Civic Centre","5211","Materials","23/11/2018"
"Wolverhampton City Council","http://opendatacommunities.org/id/metropolitan-district-council/wolverhampton","PCS AMV Couriers LTD","110.00","Strategic ICTS (ICT Serv Budget)","4214","Comms - Postage","22/11/2018"
"Wolverhampton City Council","http://opendatacommunities.org/id/metropolitan-district-council/wolverhampton","WWW.DYNMARK.COM","24.00","Pupil & Student Support","7372","Comms - Telephone Call charges","22/11/2018"
"Wolverhampton City Council","http://opendatacommunities.org/id/metropolitan-district-council/wolverhampton","ARGOS RETAIL GROUP","10.00","Bradley Resource Centre","5310","Cleaning Supplies and Materials","22/11/2018"
"Wolverhampton City Council","http://opendatacommunities.org/id/metropolitan-district-council/wolverhampton","ARGOS RETAIL GROUP","29.99","Bradley Resource Centre","5310","Materials","22/11/2018"
"Wolverhampton City Council","http://opendatacommunities.org/id/metropolitan-district-council/wolverhampton","CURRYS S/S","750.00","Long Service Awards","5732","Gratuities","22/11/2018"
"Wolverhampton City Council","http://opendatacommunities.org/id/metropolitan-district-council/wolverhampton","SAINSBURYS SACAT 2040","6.12","Mayoral Expenses","5411","Hospitality","22/11/2018"
"Wolverhampton City Council","http://opendatacommunities.org/id/metropolitan-district-council/wolverhampton","NEXT RETAIL LTD 109","36.71","Mayoral Expenses","5651","Clothing / Uniforms","22/11/2018"
"Wolverhampton City Council","http://opendatacommunities.org/id/metropolitan-district-council/wolverhampton","ALDI 94 772","44.18","EIP Locality 3","5411","Grant Payments","22/11/2018"
"Wolverhampton City Council","http://opendatacommunities.org/id/metropolitan-district-council/wolverhampton","WWW.PLANNINGPORTAL.CO.","254.00","Delivery & OCE Development","7399","Equipment - Purchase","22/11/2018"
"Wolverhampton City Council","http://opendatacommunities.org/id/metropolitan-district-council/wolverhampton","PREMIER INN","54.17","Fostering Team & Allowances","3811","Services - Supplies & Services to users","22/11/2018"
"Wolverhampton City Council","http://opendatacommunities.org/id/metropolitan-district-council/wolverhampton","Trainline","46.89","Mental Health Assessment & Care Mgmt","4112","Public Transport","22/11/2018"
"Wolverhampton City Council","http://opendatacommunities.org/id/metropolitan-district-council/wolverhampton","ASDA SUPERSTORE","1.67","Headstart - Young People Engagement","5411","Provisions (Not for resale)","22/11/2018"
"Wolverhampton City Council","http://opendatacommunities.org/id/metropolitan-district-council/wolverhampton","ASDA SUPERSTORE","11.17","Headstart - Young People Engagement","5411","Provisions (Not for resale)","22/11/2018"
"Wolverhampton City Council","http://opendatacommunities.org/id/metropolitan-district-council/wolverhampton","Trainline","63.70","Admin & Support","4112","Public Transport","22/11/2018"
"Wolverhampton City Council","http://opendatacommunities.org/id/metropolitan-district-council/wolverhampton","Trainline","70.00","Admin & Support","4112","Public Transport","22/11/2018"
"Wolverhampton City Council","http://opendatacommunities.org/id/metropolitan-district-council/wolverhampton","Trainline","107.35","Admin & Support","4112","Public Transport","22/11/2018"
"Wolverhampton City Council","http://opendatacommunities.org/id/metropolitan-district-council/wolverhampton","UNTOUCHABLES","55.76","Cemeteries","5231","Materials","22/11/2018"
"Wolverhampton City Council","http://opendatacommunities.org/id/metropolitan-district-council/wolverhampton","CITY OF WOLVERHAMPTON","-8.33","LAC Transitions Team","9399","Client Allowances","22/11/2018"
"Wolverhampton City Council","http://opendatacommunities.org/id/metropolitan-district-council/wolverhampton","CITY OF WOLVERHAMPTON","8.33","LAC Transitions Team","9399","Client Allowances","22/11/2018"
"Wolverhampton City Council","http://opendatacommunities.org/id/metropolitan-district-council/wolverhampton","POST OFFICE COUNTER","7.30","LAC Team","9402","Comms - Postage","22/11/2018"
"Wolverhampton City Council","http://opendatacommunities.org/id/metropolitan-district-council/wolverhampton","POST OFFICE COUNTER","6.50","LAC Team","9402","Comms - Postage","22/11/2018"
"Wolverhampton City Council","http://opendatacommunities.org/id/metropolitan-district-council/wolverhampton","POST OFFICE COUNTER","67.00","Intensive Family Support Team","9402","Comms - Postage","22/11/2018"
"Wolverhampton City Council","http://opendatacommunities.org/id/metropolitan-district-council/wolverhampton","Central Taxis Limited","26.90","LAC Team","4121","Client Transport","22/11/2018"
"Wolverhampton City Council","http://opendatacommunities.org/id/metropolitan-district-council/wolverhampton","Virgin Trains","128.20","LAC Team","4112","Public Transport","22/11/2018"
"Wolverhampton City Council","http://opendatacommunities.org/id/metropolitan-district-council/wolverhampton","Virgin Trains","38.80","LAC Team","4112","Public Transport","22/11/2018"
"Wolverhampton City Council","http://opendatacommunities.org/id/metropolitan-district-council/wolverhampton","POUNDLAND LTD 1463","5.10","Foundation Studies","5310","Equipment - Purchase","22/11/2018"
"Wolverhampton City Council","http://opendatacommunities.org/id/metropolitan-district-council/wolverhampton","WWW.CSKILLS.ORG","30.00","IMPACT","8249","Equipment - Purchase","22/11/2018"
"Wolverhampton City Council","http://opendatacommunities.org/id/metropolitan-district-council/wolverhampton","THE RANGE","15.96","Civic Centre","5311","Equipment - Purchase","22/11/2018"
"Wolverhampton City Council","http://opendatacommunities.org/id/metropolitan-district-council/wolverhampton","B&M RETAIL","254.96","Civic Centre","5310","Equipment - Purchase","22/11/2018"
"Wolverhampton City Council","http://opendatacommunities.org/id/metropolitan-district-council/wolverhampton","B&M RETAIL LTD","29.96","Civic Centre","5310","Equipment - Purchase","22/11/2018"
"Wolverhampton City Council","http://opendatacommunities.org/id/metropolitan-district-council/wolverhampton","HOME BARGAINS","4.74","Civic Centre","5251","Equipment - Purchase","22/11/2018"
"Wolverhampton City Council","http://opendatacommunities.org/id/metropolitan-district-council/wolverhampton","Wix.com","93.13","Technical Support","5817","Computing - Purchase of Software","22/11/2018"
"Wolverhampton City Council","http://opendatacommunities.org/id/metropolitan-district-council/wolverhampton","ASDA GROCERIES ONLINE","-0.55","EIP Locality 3","5411","Grant Payments","22/11/2018"
"Wolverhampton City Council","http://opendatacommunities.org/id/metropolitan-district-council/wolverhampton","ASDA GROCERIES ONLINE","131.82","EIP Locality 3","5411","Grant Payments","22/11/2018"
"Wolverhampton City Council","http://opendatacommunities.org/id/metropolitan-district-council/wolverhampton","B & Q 1243","37.50","Ernest Bold Court","5211","Equipment - R & M","22/11/2018"
"Wolverhampton City Council","http://opendatacommunities.org/id/metropolitan-district-council/wolverhampton","Virgin Trains","360.00","Scrutiny & Transparency","4112","Public Transport","22/11/2018"
"Wolverhampton City Council","http://opendatacommunities.org/id/metropolitan-district-council/wolverhampton","Amazon.co.uk M896J8624","4.98","Inclusion Support","5969","Books","22/11/2018"
"Wolverhampton City Council","http://opendatacommunities.org/id/metropolitan-district-council/wolverhampton","WWW.REDSPOTTEDHANK","195.70","CIN/CP Social Work Unit - Area 5","4112","Section 17","22/11/2018"
"Wolverhampton City Council","http://opendatacommunities.org/id/metropolitan-district-council/wolverhampton","WWW.PMGLTD.CO.UK","395.00","Central Training","7399","Training Expenses","22/11/2018"
"Wolverhampton City Council","http://opendatacommunities.org/id/metropolitan-district-council/wolverhampton","WWW.REDSPOTTEDHANK","196.80","CIN/CP Social Work Unit - Area 5","4112","Section 17","22/11/2018"
"Wolverhampton City Council","http://opendatacommunities.org/id/metropolitan-district-council/wolverhampton","Trainline","34.34","CIN/CP Social Work Unit - Area 4","4112","Section 17","22/11/2018"
"Wolverhampton City Council","http://opendatacommunities.org/id/metropolitan-district-council/wolverhampton","Trainline","34.34","CIN/CP Social Work Unit - Area 4","4112","Section 17","22/11/2018"
"Wolverhampton City Council","http://opendatacommunities.org/id/metropolitan-district-council/wolverhampton","WWW.STUDIO-MUSIC.C","43.95","Music Support Team","2741","Equipment - R & M","22/11/2018"
"Wolverhampton City Council","http://opendatacommunities.org/id/metropolitan-district-council/wolverhampton","Virgin Trains","-110.10","Members Expenses","4112","Public Transport","22/11/2018"
"Wolverhampton City Council","http://opendatacommunities.org/id/metropolitan-district-council/wolverhampton","PAYPAL  INTERNETFUS","15.58","Northicote Farm","5941","Equipment - Purchase","22/11/2018"
"Wolverhampton City Council","http://opendatacommunities.org/id/metropolitan-district-council/wolverhampton","TFM FARM & COUNTRY SUP","56.92","Northicote Farm","5399","Equipment - R & M","22/11/2018"
"Wolverhampton City Council","http://opendatacommunities.org/id/metropolitan-district-council/wolverhampton","THE MIDLAND","-137.50","Director of Education","7011","Services - Supplies & Services to users","21/11/2018"
"Wolverhampton City Council","http://opendatacommunities.org/id/metropolitan-district-council/wolverhampton","WM MORRISON FOOD.COM","60.07","Discretionary Fund","5411","Materials","21/11/2018"
"Wolverhampton City Council","http://opendatacommunities.org/id/metropolitan-district-council/wolverhampton","AMZN Mktp UK M85E82BA4","14.48","Adult Services - West","5942","Equipment - Purchase","21/11/2018"
"Wolverhampton City Council","http://opendatacommunities.org/id/metropolitan-district-council/wolverhampton","TIMPSON AT MORRISONS","6.67","Bradley Resource Centre","7251","Materials","21/11/2018"
"Wolverhampton City Council","http://opendatacommunities.org/id/metropolitan-district-council/wolverhampton","MAYFAIR CARPETS","125.00","LAC Transitions Team","5713","Client Allowances","21/11/2018"
"Wolverhampton City Council","http://opendatacommunities.org/id/metropolitan-district-council/wolverhampton","TESCO STORES 5194","102.26","Towers Outdoor Education Centre","5411","Provisions (Not for resale)","21/11/2018"
"Wolverhampton City Council","http://opendatacommunities.org/id/metropolitan-district-council/wolverhampton","COSTA COFFEE 43040010","8.37","Economic Development","5814","Educ Trips, Holidays, Outings, Activity","21/11/2018"
"Wolverhampton City Council","http://opendatacommunities.org/id/metropolitan-district-council/wolverhampton","Virgin Trains","326.40","Fostering Team & Allowances","4112","Public Transport","21/11/2018"
"Wolverhampton City Council","http://opendatacommunities.org/id/metropolitan-district-council/wolverhampton","SNAP    GEOFILTERS","17.99","Christmas Festivities","7311","Marketing \ Non-staff advertising","21/11/2018"
"Wolverhampton City Council","http://opendatacommunities.org/id/metropolitan-district-council/wolverhampton","SNAP    GEOFILTERS","3.90","Christmas Festivities","7311","Marketing \ Non-staff advertising","21/11/2018"
"Wolverhampton City Council","http://opendatacommunities.org/id/metropolitan-district-council/wolverhampton","SNAP    GEOFILTERS","3.90","Christmas Festivities","7311","Marketing \ Non-staff advertising","21/11/2018"
"Wolverhampton City Council","http://opendatacommunities.org/id/metropolitan-district-council/wolverhampton","SNAP    GEOFILTERS","3.90","Christmas Festivities","7311","Marketing \ Non-staff advertising","21/11/2018"
"Wolverhampton City Council","http://opendatacommunities.org/id/metropolitan-district-council/wolverhampton","SNAP    GEOFILTERS","3.90","Christmas Festivities","7311","Marketing \ Non-staff advertising","21/11/2018"
"Wolverhampton City Council","http://opendatacommunities.org/id/metropolitan-district-council/wolverhampton","SNAP    GEOFILTERS","3.90","Christmas Festivities","7311","Marketing \ Non-staff advertising","21/11/2018"
"Wolverhampton City Council","http://opendatacommunities.org/id/metropolitan-district-council/wolverhampton","SNAP    GEOFILTERS","4.96","Christmas Festivities","7311","Marketing \ Non-staff advertising","21/11/2018"
"Wolverhampton City Council","http://opendatacommunities.org/id/metropolitan-district-council/wolverhampton","WWW.DOMINOS.CO.UK","26.09","B-Safe","5812","Catering","21/11/2018"
"Wolverhampton City Council","http://opendatacommunities.org/id/metropolitan-district-council/wolverhampton","ETSY.COM - PETALSPOLLY","35.58","Register Office","5699","Equipment - Purchase","21/11/2018"
"Wolverhampton City Council","http://opendatacommunities.org/id/metropolitan-district-council/wolverhampton","POUNDLAND LTD 1463","4.17","Admin & Support","5310","Equipment - Purchase","21/11/2018"
"Wolverhampton City Council","http://opendatacommunities.org/id/metropolitan-district-council/wolverhampton","ASDA SUPERSTORE","33.64","EIP Locality 6","5411","Provisions (Not for resale)","21/11/2018"
"Wolverhampton City Council","http://opendatacommunities.org/id/metropolitan-district-council/wolverhampton","Trainline","74.28","Service Director City Environment","4112","Public Transport","21/11/2018"
"Wolverhampton City Council","http://opendatacommunities.org/id/metropolitan-district-council/wolverhampton","ASDA GEORGE COM LEEDS","16.66","LAC Transitions Team","5411","Client Allowances","21/11/2018"
"Wolverhampton City Council","http://opendatacommunities.org/id/metropolitan-district-council/wolverhampton","SSE","-122.62","LAC Transitions Team","4900","Client Allowances","21/11/2018"
"Wolverhampton City Council","http://opendatacommunities.org/id/metropolitan-district-council/wolverhampton","SSE","-111.73","LAC Transitions Team","4900","Client Allowances","21/11/2018"
"Wolverhampton City Council","http://opendatacommunities.org/id/metropolitan-district-council/wolverhampton","AMZN Mktp UK M81EV4H44","123.28","CIN/CP Social Work Unit - Area 7","5942","Section 17","21/11/2018"
"Wolverhampton City Council","http://opendatacommunities.org/id/metropolitan-district-council/wolverhampton","CUMMINGS BROTHERS LOCK","20.00","Bradley Resource Centre","7399","Equipment - R & M","21/11/2018"
"Wolverhampton City Council","http://opendatacommunities.org/id/metropolitan-district-council/wolverhampton","AMZN Mktp UK M875U28J4","28.44","Education Catering - General Overheads","5942","Equipment - Purchase","21/11/2018"
"Wolverhampton City Council","http://opendatacommunities.org/id/metropolitan-district-council/wolverhampton","WP-CENTRAL TAXIS L","132.00","LAC Team","4121","Client Transport","21/11/2018"
"Wolverhampton City Council","http://opendatacommunities.org/id/metropolitan-district-council/wolverhampton","Trainline","186.71","Legal Services","4112","Public Transport","21/11/2018"
"Wolverhampton City Council","http://opendatacommunities.org/id/metropolitan-district-council/wolverhampton","Trainline","247.76","Legal Services","4112","Public Transport","21/11/2018"
"Wolverhampton City Council","http://opendatacommunities.org/id/metropolitan-district-council/wolverhampton","MEAT AND MORE","2.98","Inclusion Support","5499","Catering","21/11/2018"
"Wolverhampton City Council","http://opendatacommunities.org/id/metropolitan-district-council/wolverhampton","POST OFFICE COUNTER","6.50","Adoption and Residence Team & Allowances","9402","Comms - Postage","21/11/2018"
"Wolverhampton City Council","http://opendatacommunities.org/id/metropolitan-district-council/wolverhampton","SKY BUSINESS","2,500.00","Wolverhampton Indoor and Open Market","4899","Comms - Telephone Rental","21/11/2018"
"Wolverhampton City Council","http://opendatacommunities.org/id/metropolitan-district-council/wolverhampton","Virgin Trains","567.00","Scrutiny & Transparency","4112","Public Transport","21/11/2018"
"Wolverhampton City Council","http://opendatacommunities.org/id/metropolitan-district-council/wolverhampton","PAYPAL  HORNER SHEA","23.95","Northicote Farm","5099","Equipment - R & M","21/11/2018"
"Wolverhampton City Council","http://opendatacommunities.org/id/metropolitan-district-council/wolverhampton","MARKS&SPENCER PLC SACA","8.75","Mayoral Expenses","5411","Hospitality","20/11/2018"
"Wolverhampton City Council","http://opendatacommunities.org/id/metropolitan-district-council/wolverhampton","TESCO STORES 6197","10.00","EIP Locality 3","5411","Grant Payments","20/11/2018"
"Wolverhampton City Council","http://opendatacommunities.org/id/metropolitan-district-council/wolverhampton","STERMAT HARDWARE -","42.11","Towers Outdoor Education Centre","5541","Equipment - Purchase","20/11/2018"
"Wolverhampton City Council","http://opendatacommunities.org/id/metropolitan-district-council/wolverhampton","WOLVERHAMPTON CC","4.58","Headstart - Young People Engagement","7523","Parking Fees","20/11/2018"
"Wolverhampton City Council","http://opendatacommunities.org/id/metropolitan-district-council/wolverhampton","C L JONES HEAD OFFICE","458.23","Towers Outdoor Education Centre","5211","Fixtures and Fittings - Purchases","20/11/2018"
"Wolverhampton City Council","http://opendatacommunities.org/id/metropolitan-district-council/wolverhampton","WOLVERHAMPTON SST","7.80","Service Development Team","4112","Public Transport","20/11/2018"
"Wolverhampton City Council","http://opendatacommunities.org/id/metropolitan-district-council/wolverhampton","LOOP11.COM","160.08","City Direct","7372","Computing - Purchase of Software","20/11/2018"
"Wolverhampton City Council","http://opendatacommunities.org/id/metropolitan-district-council/wolverhampton","AMZN Mktp UK M89Q66MS4","8.88","Strategic ICTS (ICT Serv Budget)","5942","Computing - Purchase of Hardware","20/11/2018"
"Wolverhampton City Council","http://opendatacommunities.org/id/metropolitan-district-council/wolverhampton","Virgin Trains","-231.60","LAC Team","4112","Public Transport","20/11/2018"
"Wolverhampton City Council","http://opendatacommunities.org/id/metropolitan-district-council/wolverhampton","SMYTHS TOYS","6.65","Headstart - Employability","5945","Equipment - Purchase","20/11/2018"
"Wolverhampton City Council","http://opendatacommunities.org/id/metropolitan-district-council/wolverhampton","AUDIOBLOCKS 855-766-77","119.85","Headstart Phase 3","7829","Marketing \ Non-staff advertising","20/11/2018"
"Wolverhampton City Council","http://opendatacommunities.org/id/metropolitan-district-council/wolverhampton","HALLMARK HOTEL","99.00","Wolverhampton Indoor and Open Market","7011","Accommodation Costs","20/11/2018"
"Wolverhampton City Council","http://opendatacommunities.org/id/metropolitan-district-council/wolverhampton","LIDDELL ELECTRICAL DIS","53.24","Culwell Street Depot","5065","R&M - Departmental planned (external)","20/11/2018"
"Wolverhampton City Council","http://opendatacommunities.org/id/metropolitan-district-council/wolverhampton","CARVER/WOLVERHAMPTON/L","31.04","Culwell Street Depot","5211","Equipment - Purchase","20/11/2018"
"Wolverhampton City Council","http://opendatacommunities.org/id/metropolitan-district-council/wolverhampton","Trainline","32.61","CIN/CP Social Work Unit - Area 8","4112","Client Transport","20/11/2018"
"Wolverhampton City Council","http://opendatacommunities.org/id/metropolitan-district-council/wolverhampton","AMZN MKTP UK AMAZON.CO","-18.80","EIP Locality 1","5942","Equipment - Purchase","20/11/2018"
"Wolverhampton City Council","http://opendatacommunities.org/id/metropolitan-district-council/wolverhampton","SECURITY INDUSTRY","220.00","Transportation General","7393","Fixtures and Fittings - R&M","20/11/2018"
"Wolverhampton City Council","http://opendatacommunities.org/id/metropolitan-district-council/wolverhampton","SECURITY INDUSTRY","220.00","Transportation General","7393","Fixtures and Fittings - R&M","20/11/2018"
"Wolverhampton City Council","http://opendatacommunities.org/id/metropolitan-district-council/wolverhampton","Central Taxis Limited","7.92","LAC Team","4121","Client Transport","20/11/2018"
"Wolverhampton City Council","http://opendatacommunities.org/id/metropolitan-district-council/wolverhampton","Central Taxis Limited","8.00","LAC Team","4121","Client Transport","20/11/2018"
"Wolverhampton City Council","http://opendatacommunities.org/id/metropolitan-district-council/wolverhampton","Central Taxis Limited","7.92","LAC Team","4121","Client Transport","20/11/2018"
"Wolverhampton City Council","http://opendatacommunities.org/id/metropolitan-district-council/wolverhampton","Central Taxis Limited","8.00","LAC Team","4121","Client Transport","20/11/2018"
"Wolverhampton City Council","http://opendatacommunities.org/id/metropolitan-district-council/wolverhampton","Central Taxis Limited","7.92","LAC Team","4121","Client Transport","20/11/2018"
"Wolverhampton City Council","http://opendatacommunities.org/id/metropolitan-district-council/wolverhampton","WWW.ARGOS.CO.UK","38.28","LAC Transitions Team","5310","Client Allowances","20/11/2018"
"Wolverhampton City Council","http://opendatacommunities.org/id/metropolitan-district-council/wolverhampton","ASDA GROCERIES ONLINE","48.28","Ernest Bold Court","5411","Provisions (Not for resale)","20/11/2018"
"Wolverhampton City Council","http://opendatacommunities.org/id/metropolitan-district-council/wolverhampton","POST OFFICE COUNTER","6.50","Mayoral Expenses","9402","Comms - Postage","20/11/2018"
"Wolverhampton City Council","http://opendatacommunities.org/id/metropolitan-district-council/wolverhampton","THE POST OFFICE","17.35","CIN/CP Social Work Unit - Area 4","9402","Section 17","20/11/2018"
"Wolverhampton City Council","http://opendatacommunities.org/id/metropolitan-district-council/wolverhampton","Amazon.co.uk M84N365F4","23.38","Parks - East Area Management","5969","Equipment - Purchase","20/11/2018"
"Wolverhampton City Council","http://opendatacommunities.org/id/metropolitan-district-council/wolverhampton","WWW.ARGOS.CO.UK","212.93","EIP Locality 7","5310","Grant Payments","20/11/2018"
"Wolverhampton City Council","http://opendatacommunities.org/id/metropolitan-district-council/wolverhampton","CERTSURE LLP","255.58","IMPACT","5999","Equipment - Purchase","19/11/2018"
"Wolverhampton City Council","http://opendatacommunities.org/id/metropolitan-district-council/wolverhampton","DENBIGHSHIRE COUNTY CO","11.00","CIN/CP Social Work Unit - Area 5","9399","Section 17","19/11/2018"
"Wolverhampton City Council","http://opendatacommunities.org/id/metropolitan-district-council/wolverhampton","ARGOS RETAIL GROUP","54.98","Bradley Resource Centre","5310","Materials","19/11/2018"
"Wolverhampton City Council","http://opendatacommunities.org/id/metropolitan-district-council/wolverhampton","MARKS&SPENCER PLC SACA","2.79","BP Portrait Award","5411","Provisions (Not for resale)","19/11/2018"
"Wolverhampton City Council","http://opendatacommunities.org/id/metropolitan-district-council/wolverhampton","ASDA SUPERSTORE","2.59","BP Portrait Award","5411","Provisions (Not for resale)","19/11/2018"
"Wolverhampton City Council","http://opendatacommunities.org/id/metropolitan-district-council/wolverhampton","ARGOS LTD","40.00","EIP Locality 8","5310","Equipment - Purchase","19/11/2018"
"Wolverhampton City Council","http://opendatacommunities.org/id/metropolitan-district-council/wolverhampton","000002200500000","250.00","Childrens with Disabilities Team","6011","Financial Assistance In Exceptional Circ","19/11/2018"
"Wolverhampton City Council","http://opendatacommunities.org/id/metropolitan-district-council/wolverhampton","WWW.IKEA.COM","-16.67","LAC Transitions Team","5712","Client Allowances","19/11/2018"
"Wolverhampton City Council","http://opendatacommunities.org/id/metropolitan-district-council/wolverhampton","Virgin Trains","201.67","Agresso System Support","4112","Public Transport","19/11/2018"
"Wolverhampton City Council","http://opendatacommunities.org/id/metropolitan-district-council/wolverhampton","Central Taxis Limited","6.30","EIP Locality 4","4121","Grant Payments","19/11/2018"
"Wolverhampton City Council","http://opendatacommunities.org/id/metropolitan-district-council/wolverhampton","Central Taxis Limited","6.30","EIP Locality 4","4121","Grant Payments","19/11/2018"
"Wolverhampton City Council","http://opendatacommunities.org/id/metropolitan-district-council/wolverhampton","BLOXWICH  SST","7.20","Economic Development","4112","Public Transport","19/11/2018"
"Wolverhampton City Council","http://opendatacommunities.org/id/metropolitan-district-council/wolverhampton","ADDSEARCH","56.15","City Direct","7372","Computing - Purchase of Software","19/11/2018"
"Wolverhampton City Council","http://opendatacommunities.org/id/metropolitan-district-council/wolverhampton","WISEPOPS","76.47","City Direct","7372","Computing - Purchase of Software","19/11/2018"
"Wolverhampton City Council","http://opendatacommunities.org/id/metropolitan-district-council/wolverhampton","POST OFFICE COUNTER","7.30","LAC Team","9402","Comms - Postage","19/11/2018"
"Wolverhampton City Council","http://opendatacommunities.org/id/metropolitan-district-council/wolverhampton","WWW.CARPHONEWAREHO","179.00","Strategic ICTS (ICT Serv Budget)","4812","Comms - Mobile Telephones","19/11/2018"
"Wolverhampton City Council","http://opendatacommunities.org/id/metropolitan-district-council/wolverhampton","COMMS EXPRESS LTD","28.32","Strategic ICTS (ICT Serv Budget)","5732","Equipment - Purchase","19/11/2018"
"Wolverhampton City Council","http://opendatacommunities.org/id/metropolitan-district-council/wolverhampton","AMZN Mktp UK M83826PW4","8.65","Strategic ICTS (ICT Serv Budget)","5942","Computing - Purchase of Hardware","19/11/2018"
"Wolverhampton City Council","http://opendatacommunities.org/id/metropolitan-district-council/wolverhampton","ASDA GROCERIES ONLINE","-4.00","Upper Pendeford Farm Childrens Home","5411","Provisions (Not for resale)","19/11/2018"
"Wolverhampton City Council","http://opendatacommunities.org/id/metropolitan-district-council/wolverhampton","ASDA GROCERIES ONLINE","224.34","Upper Pendeford Farm Childrens Home","5411","Provisions (Not for resale)","19/11/2018"
"Wolverhampton City Council","http://opendatacommunities.org/id/metropolitan-district-council/wolverhampton","AMZN Mktp UK M84A07PC4","89.85","Strategic ICTS (ICT Serv Budget)","5942","Computing - Purchase of Hardware","19/11/2018"
"Wolverhampton City Council","http://opendatacommunities.org/id/metropolitan-district-council/wolverhampton","Central Taxis Limited","26.90","LAC Team","4121","Client Transport","19/11/2018"
"Wolverhampton City Council","http://opendatacommunities.org/id/metropolitan-district-council/wolverhampton","Virgin Trains","34.40","Corporate Procurement Unit","4112","Public Transport","19/11/2018"
"Wolverhampton City Council","http://opendatacommunities.org/id/metropolitan-district-council/wolverhampton","ASDA GROCERIES ONLINE","30.92","Creative Studies Delivery Area","5411","Provisions (Not for resale)","19/11/2018"
"Wolverhampton City Council","http://opendatacommunities.org/id/metropolitan-district-council/wolverhampton","MILL TRADING (MIDDLEWI","58.09","Creative Studies Delivery Area","5719","Equipment - Purchase","19/11/2018"
"Wolverhampton City Council","http://opendatacommunities.org/id/metropolitan-district-council/wolverhampton","Amazon.co.uk M876W8P24","59.47","Service Wide","5969","Equipment - Purchase","19/11/2018"
"Wolverhampton City Council","http://opendatacommunities.org/id/metropolitan-district-council/wolverhampton","B&M RETAIL","118.22","LAC Transitions Team","5310","Client Allowances","19/11/2018"
"Wolverhampton City Council","http://opendatacommunities.org/id/metropolitan-district-council/wolverhampton","AMZN Mktp UK M858181Y4","15.40","SEN Sensory Inclusion","5942","Equipment - Purchase","19/11/2018"
"Wolverhampton City Council","http://opendatacommunities.org/id/metropolitan-district-council/wolverhampton","YMLP.COM","105.00","Audience Development","7372","Computing - Purchase of Software","19/11/2018"
"Wolverhampton City Council","http://opendatacommunities.org/id/metropolitan-district-council/wolverhampton","HERON FOODS LTD","7.39","Ernest Bold Court","5499","Provisions (Not for resale)","19/11/2018"
"Wolverhampton City Council","http://opendatacommunities.org/id/metropolitan-district-council/wolverhampton","ASDA GROCERIES ONLINE","63.31","Ernest Bold Court","5411","Provisions (Not for resale)","19/11/2018"
"Wolverhampton City Council","http://opendatacommunities.org/id/metropolitan-district-council/wolverhampton","HTTPS://WWW.ESTORE.WLV","95.00","Service Director City Economy","8220","Training Expenses","19/11/2018"
"Wolverhampton City Council","http://opendatacommunities.org/id/metropolitan-district-council/wolverhampton","BOOTS - 6564","9.32","Duke Street Bungalows","5912","R4010","19/11/2018"
"Wolverhampton City Council","http://opendatacommunities.org/id/metropolitan-district-council/wolverhampton","SAINSBURYS SACAT 2040","3.00","Inclusion Support","5411","Provisions (Not for resale)","19/11/2018"
"Wolverhampton City Council","http://opendatacommunities.org/id/metropolitan-district-council/wolverhampton","CORDA MUSIC PUBLICATIO","12.35","Music Support Team","2741","Equipment - R & M","19/11/2018"
"Wolverhampton City Council","http://opendatacommunities.org/id/metropolitan-district-council/wolverhampton","WWW.STUDIO-MUSIC.C","36.95","Music Support Team","2741","Equipment - R & M","19/11/2018"
"Wolverhampton City Council","http://opendatacommunities.org/id/metropolitan-district-council/wolverhampton","WWW.STUDIO-MUSIC.C","31.95","Music Support Team","2741","Equipment - R & M","19/11/2018"
"Wolverhampton City Council","http://opendatacommunities.org/id/metropolitan-district-council/wolverhampton","AMZN MKTP UK M84PB2PA4","14.57","Private Hire Drivers","5942","Equipment - Purchase","19/11/2018"
"Wolverhampton City Council","http://opendatacommunities.org/id/metropolitan-district-council/wolverhampton","WAYFAIR #2818029302","199.11","CIN/CP Social Work Unit - Area 5","5965","Section 17","19/11/2018"
"Wolverhampton City Council","http://opendatacommunities.org/id/metropolitan-district-council/wolverhampton","MUSIC EXCHANGE","183.34","Music Support Team","5733","Stationery","19/11/2018"
"Wolverhampton City Council","http://opendatacommunities.org/id/metropolitan-district-council/wolverhampton","AMZN Mktp UK M868S91T4","1.97","Parks - East Area Management","5942","Equipment - Purchase","19/11/2018"
"Wolverhampton City Council","http://opendatacommunities.org/id/metropolitan-district-council/wolverhampton","AMZN Mktp UK M83VV11N4","6.04","Parks - East Area Management","5942","Equipment - Purchase","19/11/2018"
"Wolverhampton City Council","http://opendatacommunities.org/id/metropolitan-district-council/wolverhampton","Virgin Trains","352.00","Electoral Registration","4112","Public Transport","19/11/2018"
"Wolverhampton City Council","http://opendatacommunities.org/id/metropolitan-district-council/wolverhampton","Virgin Trains","120.10","Members Expenses","4112","Public Transport","19/11/2018"
"Wolverhampton City Council","http://opendatacommunities.org/id/metropolitan-district-council/wolverhampton","TFM FARM & COUNTRY SUP","19.67","Northicote Farm","5399","Equipment - R & M","19/11/2018"
"Wolverhampton City Council","http://opendatacommunities.org/id/metropolitan-district-council/wolverhampton","TFM FARM & COUNTRY SUP","65.76","Northicote Farm","5399","Equipment - R & M","19/11/2018"
"Wolverhampton City Council","http://opendatacommunities.org/id/metropolitan-district-council/wolverhampton","WWW.GOV.UK","10.00","Private Sector Housing","8999","Services - Professional Fees","19/11/2018"
"Wolverhampton City Council","http://opendatacommunities.org/id/metropolitan-district-council/wolverhampton","WWW.CASSART.CO.UK","94.60","BP Portrait Award","5970","Materials","16/11/2018"
"Wolverhampton City Council","http://opendatacommunities.org/id/metropolitan-district-council/wolverhampton","WWW.ARGOS.CO.UK","-163.29","LAC Transitions Team","5310","Client Allowances","16/11/2018"
"Wolverhampton City Council","http://opendatacommunities.org/id/metropolitan-district-council/wolverhampton","PREMIER INN","-135.50","Contemporary Gallery","3811","Accommodation Costs","16/11/2018"
"Wolverhampton City Council","http://opendatacommunities.org/id/metropolitan-district-council/wolverhampton","AMZN Mktp UK M83T06EY4","24.00","Communications & Marketing - General","5942","Books","16/11/2018"
"Wolverhampton City Council","http://opendatacommunities.org/id/metropolitan-district-council/wolverhampton","ASDA STORES 4274","17.50","LAC Transitions Team","5411","Client Allowances","16/11/2018"
"Wolverhampton City Council","http://opendatacommunities.org/id/metropolitan-district-council/wolverhampton","MY.MORRISONS.COM","16.67","Headstart Phase 3","5411","Provisions (Not for resale)","16/11/2018"
"Wolverhampton City Council","http://opendatacommunities.org/id/metropolitan-district-council/wolverhampton","Trainline","10.63","Education Business Partnership","4112","Public Transport","16/11/2018"
"Wolverhampton City Council","http://opendatacommunities.org/id/metropolitan-district-council/wolverhampton","NAMESCO","39.98","Work Box","4816","Computing - Purchase of Software","16/11/2018"
"Wolverhampton City Council","http://opendatacommunities.org/id/metropolitan-district-council/wolverhampton","B&M RETAIL","297.98","LAC Transitions Team","5310","Client Allowances","16/11/2018"
"Wolverhampton City Council","http://opendatacommunities.org/id/metropolitan-district-council/wolverhampton","ARGOS WALSALL CROW","355.90","LAC Transitions Team","5310","Client Allowances","16/11/2018"
"Wolverhampton City Council","http://opendatacommunities.org/id/metropolitan-district-council/wolverhampton","DUNELM (SOFT FURNISHIN","134.00","LAC Transitions Team","5714","Client Allowances","16/11/2018"
"Wolverhampton City Council","http://opendatacommunities.org/id/metropolitan-district-council/wolverhampton","Amazon.co.uk M83WZ5094","9.53","LAC Transitions Team","5969","Client Allowances","16/11/2018"
"Wolverhampton City Council","http://opendatacommunities.org/id/metropolitan-district-council/wolverhampton","Virgin Trains","91.00","LAC Team","4112","Client Transport","16/11/2018"
"Wolverhampton City Council","http://opendatacommunities.org/id/metropolitan-district-council/wolverhampton","WWW.ARGOS.CO.UK","444.95","EIP Locality 1","5310","Grant Payments","16/11/2018"
"Wolverhampton City Council","http://opendatacommunities.org/id/metropolitan-district-council/wolverhampton","CT WOLVERHAMPTON","85.00","EIP Locality 1","8398","Grant Payments","16/11/2018"
"Wolverhampton City Council","http://opendatacommunities.org/id/metropolitan-district-council/wolverhampton","Central Taxis Limited","20.00","LAC Team","4121","Client Transport","16/11/2018"
"Wolverhampton City Council","http://opendatacommunities.org/id/metropolitan-district-council/wolverhampton","PREMIER INN","39.50","LAC Team","3811","Services - Supplies & Services to users","16/11/2018"
"Wolverhampton City Council","http://opendatacommunities.org/id/metropolitan-district-council/wolverhampton","RICS SUBS UK CYBS","757.00","Central Training","8699","Training Expenses","16/11/2018"
"Wolverhampton City Council","http://opendatacommunities.org/id/metropolitan-district-council/wolverhampton","Trainline","34.34","CIN/CP Social Work Unit - Area 4","4112","Section 17","16/11/2018"
"Wolverhampton City Council","http://opendatacommunities.org/id/metropolitan-district-council/wolverhampton","HIRE STATION-LTD","78.00","Fountain Maintenance","7394","R&M - Departmental planned (external)","16/11/2018"
"Wolverhampton City Council","http://opendatacommunities.org/id/metropolitan-district-council/wolverhampton","SAFETYBOOTSUK","42.93","Parks - East Area Management","5661","Clothing / Uniforms","16/11/2018"
"Wolverhampton City Council","http://opendatacommunities.org/id/metropolitan-district-council/wolverhampton","Virgin Trains","213.70","Members Expenses","4112","Public Transport","16/11/2018"
"Wolverhampton City Council","http://opendatacommunities.org/id/metropolitan-district-council/wolverhampton","HOO HOOTSUITE INC","96.50","Service Wide","7399","Computing - Purchase of Software","16/11/2018"
"Wolverhampton City Council","http://opendatacommunities.org/id/metropolitan-district-council/wolverhampton","WWW.WMCA.CO.UK","56.50","IMPACT","9399","Services - Fees and Charges","15/11/2018"
"Wolverhampton City Council","http://opendatacommunities.org/id/metropolitan-district-council/wolverhampton","WADE BUILDING SERVICES","51.00","Bonfire","5039","Materials","15/11/2018"
"Wolverhampton City Council","http://opendatacommunities.org/id/metropolitan-district-council/wolverhampton","WWW.CARESHOP.CO.UK","23.13","Ernest Bold Court","5999","R4007","15/11/2018"
"Wolverhampton City Council","http://opendatacommunities.org/id/metropolitan-district-council/wolverhampton","BEATSABAR MUSIC PROJEC","221.62","Youth Offending Team","5733","Equipment - Purchase","15/11/2018"
"Wolverhampton City Council","http://opendatacommunities.org/id/metropolitan-district-council/wolverhampton","BEATSABAR MUSIC PROJEC","221.62","Youth Offending Team","5733","Equipment - Purchase","15/11/2018"
"Wolverhampton City Council","http://opendatacommunities.org/id/metropolitan-district-council/wolverhampton","BODYCARE H/BEAUTY","14.95","EIP Locality 3","5977","Grant Payments","15/11/2018"
"Wolverhampton City Council","http://opendatacommunities.org/id/metropolitan-district-council/wolverhampton","ARGOS LTD","41.67","LAC Transitions Team","5310","Client Allowances","15/11/2018"
"Wolverhampton City Council","http://opendatacommunities.org/id/metropolitan-district-council/wolverhampton","PREMIER INN","135.50","Contemporary Gallery","3811","Accommodation Costs","15/11/2018"
"Wolverhampton City Council","http://opendatacommunities.org/id/metropolitan-district-council/wolverhampton","AMZN Mktp UK M857N6TH4","150.57","Communications & Marketing - General","5942","Books","15/11/2018"
"Wolverhampton City Council","http://opendatacommunities.org/id/metropolitan-district-council/wolverhampton","AMZN Mktp UK M891J8T74","10.40","Headstart Phase 3","5942","Stationery","15/11/2018"
"Wolverhampton City Council","http://opendatacommunities.org/id/metropolitan-district-council/wolverhampton","ASDA SUPERSTORE","67.36","Mayoral Expenses","5411","Provisions (Not for resale)","15/11/2018"
"Wolverhampton City Council","http://opendatacommunities.org/id/metropolitan-district-council/wolverhampton","CREATIVE FRAMING","16.00","Mayoral Expenses","5971","Fixtures and Fittings - Purchases","15/11/2018"
"Wolverhampton City Council","http://opendatacommunities.org/id/metropolitan-district-council/wolverhampton","WWW.ARGOS.CO.UK","195.80","LAC Transitions Team","5310","Client Allowances","15/11/2018"
"Wolverhampton City Council","http://opendatacommunities.org/id/metropolitan-district-council/wolverhampton","ARUN SANDS","59.00","LAC Transitions Team","7011","Client Allowances","15/11/2018"
"Wolverhampton City Council","http://opendatacommunities.org/id/metropolitan-district-council/wolverhampton","ASDA SUPERSTORE","15.63","Public Health Support Costs","5411","Catering","15/11/2018"
"Wolverhampton City Council","http://opendatacommunities.org/id/metropolitan-district-council/wolverhampton","B & Q 1243","14.04","Public Conveniences","5211","Materials","15/11/2018"
"Wolverhampton City Council","http://opendatacommunities.org/id/metropolitan-district-council/wolverhampton","ASDA GROCERIES ONLINE","3.00","Upper Pendeford Farm Childrens Home","5411","Provisions (Not for resale)","15/11/2018"
"Wolverhampton City Council","http://opendatacommunities.org/id/metropolitan-district-council/wolverhampton","Virgin Trains","241.60","LAC Team","4112","Public Transport","15/11/2018"
"Wolverhampton City Council","http://opendatacommunities.org/id/metropolitan-district-council/wolverhampton","eSky.pl S.A.","60.30","Destitute Plus","4722","Public Transport","15/11/2018"
"Wolverhampton City Council","http://opendatacommunities.org/id/metropolitan-district-council/wolverhampton","WWW.WMCA.CO.UK","33.50","Discretionary Fund","9399","Public Transport","15/11/2018"
"Wolverhampton City Council","http://opendatacommunities.org/id/metropolitan-district-council/wolverhampton","ASDA STORE","30.00","LAC Transitions Team","5411","Client Allowances","15/11/2018"
"Wolverhampton City Council","http://opendatacommunities.org/id/metropolitan-district-council/wolverhampton","WM MORRISONS STORE","13.40","Safeguarding Partnership Board","5411","Provisions (Not for resale)","15/11/2018"
"Wolverhampton City Council","http://opendatacommunities.org/id/metropolitan-district-council/wolverhampton","ITUNES.COM/BILL","2.07","LAC Education Team (LACE)","5735","Computing - Purchase of Software","15/11/2018"
"Wolverhampton City Council","http://opendatacommunities.org/id/metropolitan-district-council/wolverhampton","WWW.WOLVERHAMPTON.GOV.","127.44","LAC Transitions Team","9399","Client Allowances","15/11/2018"
"Wolverhampton City Council","http://opendatacommunities.org/id/metropolitan-district-council/wolverhampton","WWW.WOLVERHAMPTON.GOV.","500.00","LAC Transitions Team","9399","Client Allowances","15/11/2018"
"Wolverhampton City Council","http://opendatacommunities.org/id/metropolitan-district-council/wolverhampton","WWW.WOLVERHAMPTON.GOV.","127.44","LAC Transitions Team","9399","Client Allowances","15/11/2018"
"Wolverhampton City Council","http://opendatacommunities.org/id/metropolitan-district-council/wolverhampton","WWW.WOLVERHAMPTON.GOV.","500.00","LAC Transitions Team","9399","Client Allowances","15/11/2018"
"Wolverhampton City Council","http://opendatacommunities.org/id/metropolitan-district-council/wolverhampton","WWW.WOLVERHAMPTON.GOV.","169.52","LAC Transitions Team","9399","Client Allowances","15/11/2018"
"Wolverhampton City Council","http://opendatacommunities.org/id/metropolitan-district-council/wolverhampton","WWW.WOLVERHAMPTON.GOV.","500.00","LAC Transitions Team","9399","Client Allowances","15/11/2018"
"Wolverhampton City Council","http://opendatacommunities.org/id/metropolitan-district-council/wolverhampton","HUGHES","411.67","LAC Transitions Team","5732","Client Allowances","15/11/2018"
"Wolverhampton City Council","http://opendatacommunities.org/id/metropolitan-district-council/wolverhampton","LOCO2   LO-5KJUID","51.00","Panel Expenses Fostering & Adoption","4112","Public Transport","15/11/2018"
"Wolverhampton City Council","http://opendatacommunities.org/id/metropolitan-district-council/wolverhampton","AMZN MKTP UK AMAZON.CO","-9.39","EIP Locality 1","5942","Equipment - Purchase","15/11/2018"
"Wolverhampton City Council","http://opendatacommunities.org/id/metropolitan-district-council/wolverhampton","AMZN Mktp UK M87KK2T84","14.50","EIP Locality 1","5942","Equipment - Purchase","15/11/2018"
"Wolverhampton City Council","http://opendatacommunities.org/id/metropolitan-district-council/wolverhampton","AMZN Mktp UK M89RB1T74","3.72","EIP Locality 1","5942","Equipment - Purchase","15/11/2018"
"Wolverhampton City Council","http://opendatacommunities.org/id/metropolitan-district-council/wolverhampton","AMZN Mktp UK M827H6TJ4","5.41","EIP Locality 1","5942","Equipment - Purchase","15/11/2018"
"Wolverhampton City Council","http://opendatacommunities.org/id/metropolitan-district-council/wolverhampton","Central Taxis Limited","30.17","LAC Team","4121","Client Transport","15/11/2018"
"Wolverhampton City Council","http://opendatacommunities.org/id/metropolitan-district-council/wolverhampton","Central Taxis Limited","18.75","LAC Team","4121","Client Transport","15/11/2018"
"Wolverhampton City Council","http://opendatacommunities.org/id/metropolitan-district-council/wolverhampton","Central Taxis Limited","20.08","LAC Team","4121","Client Transport","15/11/2018"
"Wolverhampton City Council","http://opendatacommunities.org/id/metropolitan-district-council/wolverhampton","WILKO RETAIL LIMIT","14.05","Civic Centre","5722","Equipment - Purchase","15/11/2018"
"Wolverhampton City Council","http://opendatacommunities.org/id/metropolitan-district-council/wolverhampton","CTS   AIRPORT DIRECT T","114.00","Members Expenses","4722","Public Transport","15/11/2018"
"Wolverhampton City Council","http://opendatacommunities.org/id/metropolitan-district-council/wolverhampton","WOLVERHAMPTON TROPHY C","30.00","Global Budgets","5999","Equipment - Purchase","15/11/2018"
"Wolverhampton City Council","http://opendatacommunities.org/id/metropolitan-district-council/wolverhampton","WWW.ACCOUNTS@IIA.ORG.U","50.00","Central Training","8931","Training Expenses","15/11/2018"
"Wolverhampton City Council","http://opendatacommunities.org/id/metropolitan-district-council/wolverhampton","EE STORE R501","8.33","School Crossing Patrol","4814","Comms - Telephone Call charges","15/11/2018"
"Wolverhampton City Council","http://opendatacommunities.org/id/metropolitan-district-council/wolverhampton","J VAN VLIET BIRMINGHAM","80.00","Creative Studies Delivery Area","5399","Materials for resale","15/11/2018"
"Wolverhampton City Council","http://opendatacommunities.org/id/metropolitan-district-council/wolverhampton","Amazon.co.uk M85AJ6A24","154.94","Music Support Team","5969","Equipment - R & M","15/11/2018"
"Wolverhampton City Council","http://opendatacommunities.org/id/metropolitan-district-council/wolverhampton","WOLVERHAMPTON T/O","13.40","Strategic ICTS (ICT Serv Budget)","4112","Public Transport","14/11/2018"
"Wolverhampton City Council","http://opendatacommunities.org/id/metropolitan-district-council/wolverhampton","AMZN Mktp UK M86F13JK4","300.80","Document Centre - General","5942","Equipment - Purchase","14/11/2018"
"Wolverhampton City Council","http://opendatacommunities.org/id/metropolitan-district-council/wolverhampton","AMZN Mktp UK M852C63M4","838.87","Document Centre - General","5942","Equipment - Purchase","14/11/2018"
"Wolverhampton City Council","http://opendatacommunities.org/id/metropolitan-district-council/wolverhampton","B&M RETAIL LTD","3.32","LAC Transitions Team","5310","Independant Living Allowance","14/11/2018"
"Wolverhampton City Council","http://opendatacommunities.org/id/metropolitan-district-council/wolverhampton","SAINSBURYS 2040","5.42","LAC Transitions Team","5411","Independant Living Allowance","14/11/2018"
"Wolverhampton City Council","http://opendatacommunities.org/id/metropolitan-district-council/wolverhampton","CAPITAL H&B LTD","56.00","IMPACT","7230","Equipment - Purchase","14/11/2018"
"Wolverhampton City Council","http://opendatacommunities.org/id/metropolitan-district-council/wolverhampton","WM MORRISON FOOD.COM","109.07","Discretionary Fund","5411","Materials","14/11/2018"
"Wolverhampton City Council","http://opendatacommunities.org/id/metropolitan-district-council/wolverhampton","SAINSBURYS 2040","12.36","LAC Transitions Team","5411","Client Allowances","14/11/2018"
"Wolverhampton City Council","http://opendatacommunities.org/id/metropolitan-district-council/wolverhampton","SAD ART-SHOP","15.50","BP Portrait Award","8220","Materials","14/11/2018"
"Wolverhampton City Council","http://opendatacommunities.org/id/metropolitan-district-council/wolverhampton","WM MORRISONS STORE","22.00","EIP Locality 2","5411","Provisions (Not for resale)","14/11/2018"
"Wolverhampton City Council","http://opendatacommunities.org/id/metropolitan-district-council/wolverhampton","ARGOS LTD","158.32","LAC Transitions Team","5310","Client Allowances","14/11/2018"
"Wolverhampton City Council","http://opendatacommunities.org/id/metropolitan-district-council/wolverhampton","WWW.ARGOS.CO.UK","-53.28","LAC Transitions Team","5310","Client Allowances","14/11/2018"
"Wolverhampton City Council","http://opendatacommunities.org/id/metropolitan-district-council/wolverhampton","WWW.ARGOS.CO.UK","53.28","LAC Transitions Team","5310","Client Allowances","14/11/2018"
"Wolverhampton City Council","http://opendatacommunities.org/id/metropolitan-district-council/wolverhampton","WWW.ARGOS.CO.UK","185.82","LAC Transitions Team","5310","Client Allowances","14/11/2018"
"Wolverhampton City Council","http://opendatacommunities.org/id/metropolitan-district-council/wolverhampton","WWW.ARGOS.CO.UK","188.29","LAC Transitions Team","5310","Client Allowances","14/11/2018"
"Wolverhampton City Council","http://opendatacommunities.org/id/metropolitan-district-council/wolverhampton","REGAL CARPETS AND FURN","350.00","LAC Transitions Team","5713","Client Allowances","14/11/2018"
"Wolverhampton City Council","http://opendatacommunities.org/id/metropolitan-district-council/wolverhampton","WWW.ARGOS.CO.UK","220.34","LAC Transitions Team","5310","Client Allowances","14/11/2018"
"Wolverhampton City Council","http://opendatacommunities.org/id/metropolitan-district-council/wolverhampton","WWW.ARGOS.CO.UK","53.28","LAC Transitions Team","5310","Client Allowances","14/11/2018"
"Wolverhampton City Council","http://opendatacommunities.org/id/metropolitan-district-council/wolverhampton","Trainline","70.31","CIN/CP Social Work Unit - Area 6","4112","Public Transport","14/11/2018"
"Wolverhampton City Council","http://opendatacommunities.org/id/metropolitan-district-council/wolverhampton","TESCO STORES 5194","231.39","Towers Outdoor Education Centre","5411","Provisions (Not for resale)","14/11/2018"
"Wolverhampton City Council","http://opendatacommunities.org/id/metropolitan-district-council/wolverhampton","Trainline","89.74","Research & Development","4112","Public Transport","14/11/2018"
"Wolverhampton City Council","http://opendatacommunities.org/id/metropolitan-district-council/wolverhampton","CITY OF WOLVERHAMPTON","10.00","LAC Transitions Team","9399","Client Allowances","14/11/2018"
"Wolverhampton City Council","http://opendatacommunities.org/id/metropolitan-district-council/wolverhampton","Virgin Trains","8.70","Audit Services","4112","Public Transport","14/11/2018"
"Wolverhampton City Council","http://opendatacommunities.org/id/metropolitan-district-council/wolverhampton","B & Q 1243","101.45","Bert Williams Leisure Centre","5211","Materials","14/11/2018"
"Wolverhampton City Council","http://opendatacommunities.org/id/metropolitan-district-council/wolverhampton","POUNDLAND LTD 1463","20.17","Admin & Support","5310","Equipment - Purchase","14/11/2018"
"Wolverhampton City Council","http://opendatacommunities.org/id/metropolitan-district-council/wolverhampton","ASDA SUPERSTORE","39.86","EIP Locality 5","5411","Training Expenses","14/11/2018"
"Wolverhampton City Council","http://opendatacommunities.org/id/metropolitan-district-council/wolverhampton","WWW.LEARNINGANDWORK.OR","180.00","AES Staff Development","8398","Services - Supplies & Services to users","14/11/2018"
"Wolverhampton City Council","http://opendatacommunities.org/id/metropolitan-district-council/wolverhampton","SECURITY INDUSTRY","220.00","Transportation General","7393","Fixtures and Fittings - R&M","14/11/2018"
"Wolverhampton City Council","http://opendatacommunities.org/id/metropolitan-district-council/wolverhampton","Cross Country Trains","45.50","Transportation General","4112","Public Transport","14/11/2018"
"Wolverhampton City Council","http://opendatacommunities.org/id/metropolitan-district-council/wolverhampton","SAINSBURYS SACAT 2040","7.95","Duke Street Bungalows","5411","R4010","14/11/2018"
"Wolverhampton City Council","http://opendatacommunities.org/id/metropolitan-district-council/wolverhampton","Central Taxis Limited","20.08","LAC Team","4121","Client Transport","14/11/2018"
"Wolverhampton City Council","http://opendatacommunities.org/id/metropolitan-district-council/wolverhampton","Wix.com","186.26","Technical Support","5817","Computing - Purchase of Software","14/11/2018"
"Wolverhampton City Council","http://opendatacommunities.org/id/metropolitan-district-council/wolverhampton","AMZN MKTP UK M863E2344","44.17","City Direct","5942","Books","14/11/2018"
"Wolverhampton City Council","http://opendatacommunities.org/id/metropolitan-district-council/wolverhampton","HOME BARGAINS WOLVERHA","25.07","EIP Locality 3","5251","Grant Payments","14/11/2018"
"Wolverhampton City Council","http://opendatacommunities.org/id/metropolitan-district-council/wolverhampton","B & Q 1243","25.54","Bradley Resource Centre","5211","Equipment - R & M","14/11/2018"
"Wolverhampton City Council","http://opendatacommunities.org/id/metropolitan-district-council/wolverhampton","Trainline","56.22","Central Utilities to Recharge","4112","Public Transport","14/11/2018"
"Wolverhampton City Council","http://opendatacommunities.org/id/metropolitan-district-council/wolverhampton","COZENS & COLE LTD","173.73","Civic Centre Repairs & Maintenance","5251","Equipment - Purchase","14/11/2018"
"Wolverhampton City Council","http://opendatacommunities.org/id/metropolitan-district-council/wolverhampton","WWW.STUDIO-MUSIC.C","105.90","Music Support Team","2741","Equipment - R & M","14/11/2018"
"Wolverhampton City Council","http://opendatacommunities.org/id/metropolitan-district-council/wolverhampton","WWW.STUDIO-MUSIC.C","159.40","Music Support Team","2741","Equipment - R & M","14/11/2018"
"Wolverhampton City Council","http://opendatacommunities.org/id/metropolitan-district-council/wolverhampton","WWW.STUDIO-MUSIC.C","131.40","Music Support Team","2741","Equipment - R & M","14/11/2018"
"Wolverhampton City Council","http://opendatacommunities.org/id/metropolitan-district-council/wolverhampton","Trainline","9.92","CIN/CP Social Work Unit - Area 8","4112","Section 17","14/11/2018"
"Wolverhampton City Council","http://opendatacommunities.org/id/metropolitan-district-council/wolverhampton","Virgin Trains","203.80","Fostering Team & Allowances","4112","Public Transport","14/11/2018"
"Wolverhampton City Council","http://opendatacommunities.org/id/metropolitan-district-council/wolverhampton","ASDA SUPERSTORE","4.58","EIP Locality 3","5411","Grant Payments","14/11/2018"
"Wolverhampton City Council","http://opendatacommunities.org/id/metropolitan-district-council/wolverhampton","NATWEST BANK","200.00","Scrutiny & Transparency","6011","Public Transport","14/11/2018"
"Wolverhampton City Council","http://opendatacommunities.org/id/metropolitan-district-council/wolverhampton","WWW.BREGPRODUCTS.CO.UK","860.00","Document Centre - General","5085","Equipment - Purchase","13/11/2018"
"Wolverhampton City Council","http://opendatacommunities.org/id/metropolitan-district-council/wolverhampton","AMZN Mktp UK M87GY6NN4","70.75","Document Centre - General","5942","Equipment - Purchase","13/11/2018"
"Wolverhampton City Council","http://opendatacommunities.org/id/metropolitan-district-council/wolverhampton","AMZN Mktp UK M84YH5NT4","70.75","Document Centre - General","5942","Equipment - Purchase","13/11/2018"
"Wolverhampton City Council","http://opendatacommunities.org/id/metropolitan-district-council/wolverhampton","ASDA GROCERIES ONLINE","60.36","Ernest Bold Court","5411","Provisions (Not for resale)","13/11/2018"
"Wolverhampton City Council","http://opendatacommunities.org/id/metropolitan-district-council/wolverhampton","AMZN Mktp UK M88MO73A4","9.15","Art Gallery","5942","Materials","13/11/2018"
"Wolverhampton City Council","http://opendatacommunities.org/id/metropolitan-district-council/wolverhampton","WWW.ARGOS.CO.UK","82.94","EIP Locality 8","5310","Grant Payments","13/11/2018"
"Wolverhampton City Council","http://opendatacommunities.org/id/metropolitan-district-council/wolverhampton","B&M RETAIL","155.72","LAC Transitions Team","5310","Client Allowances","13/11/2018"
"Wolverhampton City Council","http://opendatacommunities.org/id/metropolitan-district-council/wolverhampton","ASDA SUPERSTORE","87.64","LAC Transitions Team","5411","Client Allowances","13/11/2018"
"Wolverhampton City Council","http://opendatacommunities.org/id/metropolitan-district-council/wolverhampton","MIDLAND DOMESTIC","333.33","LAC Transitions Team","5722","Client Allowances","13/11/2018"
"Wolverhampton City Council","http://opendatacommunities.org/id/metropolitan-district-council/wolverhampton","ARGOS RETAIL GROUP","31.98","EIP Locality 2","5310","Grant Payments","13/11/2018"
"Wolverhampton City Council","http://opendatacommunities.org/id/metropolitan-district-council/wolverhampton","SPAR SIOP TANDDERWEN","2.57","Towers Outdoor Education Centre","5411","Provisions (Not for resale)","13/11/2018"
"Wolverhampton City Council","http://opendatacommunities.org/id/metropolitan-district-council/wolverhampton","SPAR SIOP TANDDERWEN","201.25","Towers Outdoor Education Centre","5411","Provisions (Not for resale)","13/11/2018"
"Wolverhampton City Council","http://opendatacommunities.org/id/metropolitan-district-council/wolverhampton","WYNNSTAY ARGICULTURAL","33.81","Towers Outdoor Education Centre","5311","Fixtures and Fittings - Purchases","13/11/2018"
"Wolverhampton City Council","http://opendatacommunities.org/id/metropolitan-district-council/wolverhampton","AWARD SCHEME LTD","24.75","Towers Outdoor Education Centre","8398","Equipment - Purchase","13/11/2018"
"Wolverhampton City Council","http://opendatacommunities.org/id/metropolitan-district-council/wolverhampton","AMZN Mktp UK M837N3NO4","33.54","Bert Williams Leisure Centre","5942","Books","13/11/2018"
"Wolverhampton City Council","http://opendatacommunities.org/id/metropolitan-district-council/wolverhampton","AMZN Mktp UK M87ZU2ZD4","12.76","Ernest Bold Court","5942","Stationery","13/11/2018"
"Wolverhampton City Council","http://opendatacommunities.org/id/metropolitan-district-council/wolverhampton","WOLVERHAMPTON T/O","17.40","City Direct","4112","Public Transport","13/11/2018"
"Wolverhampton City Council","http://opendatacommunities.org/id/metropolitan-district-council/wolverhampton","SCREWFIX DIRECT","63.00","Caretakers Community Centre","5211","Materials","13/11/2018"
"Wolverhampton City Council","http://opendatacommunities.org/id/metropolitan-district-council/wolverhampton","LOCKERTEK LTD","737.95","Central Baths","5046","Equipment - Purchase","13/11/2018"
"Wolverhampton City Council","http://opendatacommunities.org/id/metropolitan-district-council/wolverhampton","Virgin Trains","42.35","LAC Team","4112","Public Transport","13/11/2018"
"Wolverhampton City Council","http://opendatacommunities.org/id/metropolitan-district-council/wolverhampton","Amazon.co.uk M84OL9N54","49.98","Strategic ICTS (ICT Serv Budget)","5969","Equipment - Purchase","13/11/2018"
"Wolverhampton City Council","http://opendatacommunities.org/id/metropolitan-district-council/wolverhampton","BRITANNIA","120.00","MASH","7011","No Recourse to Public Funds","13/11/2018"
"Wolverhampton City Council","http://opendatacommunities.org/id/metropolitan-district-council/wolverhampton","WWW.WOLVERHAMPTON.GOV.","70.06","LAC Transitions Team","9399","Client Allowances","13/11/2018"
"Wolverhampton City Council","http://opendatacommunities.org/id/metropolitan-district-council/wolverhampton","ROYAL CARPETS","300.00","LAC Transitions Team","5713","Client Allowances","13/11/2018"
"Wolverhampton City Council","http://opendatacommunities.org/id/metropolitan-district-council/wolverhampton","ROYAL CARPETS","291.67","LAC Transitions Team","5713","Client Allowances","13/11/2018"
"Wolverhampton City Council","http://opendatacommunities.org/id/metropolitan-district-council/wolverhampton","IZ  D & K TRADING (MID","137.50","Wolverhampton Indoor and Open Market","5999","Equipment - Purchase","13/11/2018"
"Wolverhampton City Council","http://opendatacommunities.org/id/metropolitan-district-council/wolverhampton","ASDA SUPERSTORE","13.35","MASH","5411","Provisions (Not for resale)","13/11/2018"
"Wolverhampton City Council","http://opendatacommunities.org/id/metropolitan-district-council/wolverhampton","B & Q 1243","14.93","Ernest Bold Court","5211","Equipment - Purchase","13/11/2018"
"Wolverhampton City Council","http://opendatacommunities.org/id/metropolitan-district-council/wolverhampton","WWW.ARGOS.CO.UK","183.32","LAC Transitions Team","5310","Client Allowances","13/11/2018"
"Wolverhampton City Council","http://opendatacommunities.org/id/metropolitan-district-council/wolverhampton","Virgin Trains","112.90","Corporate Procurement Unit","4112","Public Transport","13/11/2018"
"Wolverhampton City Council","http://opendatacommunities.org/id/metropolitan-district-council/wolverhampton","Amazon.co.uk M85P48LS4","33.75","Music Support Team","5969","Equipment - R & M","13/11/2018"
"Wolverhampton City Council","http://opendatacommunities.org/id/metropolitan-district-council/wolverhampton","IPS DURHAM CONTACT CTR","19.00","LAC Transitions Team","9399","Services - Fees and Charges","13/11/2018"
"Wolverhampton City Council","http://opendatacommunities.org/id/metropolitan-district-council/wolverhampton","Trainline","148.05","Service Director Adults","4112","Public Transport","13/11/2018"
"Wolverhampton City Council","http://opendatacommunities.org/id/metropolitan-district-council/wolverhampton","FACEBK Z45DXGNG52","89.33","Visitor Economy - Development","7311","Marketing \ Non-staff advertising","12/11/2018"
"Wolverhampton City Council","http://opendatacommunities.org/id/metropolitan-district-council/wolverhampton","MOONFRUIT","72.00","Art Gallery","7372","Computing - Purchase of Software","12/11/2018"
"Wolverhampton City Council","http://opendatacommunities.org/id/metropolitan-district-council/wolverhampton","ASDA GROCERIES ONLINE","47.83","Ernest Bold Court","5411","Provisions (Not for resale)","12/11/2018"
"Wolverhampton City Council","http://opendatacommunities.org/id/metropolitan-district-council/wolverhampton","ARGOS DIRECT","252.94","CIN/CP Social Work Unit - Area 5","5310","Equipment - Purchase","12/11/2018"
"Wolverhampton City Council","http://opendatacommunities.org/id/metropolitan-district-council/wolverhampton","Jacksons Art Supplies","239.58","BP Portrait Award","5970","Materials","12/11/2018"
"Wolverhampton City Council","http://opendatacommunities.org/id/metropolitan-district-council/wolverhampton","Trainline","150.59","Safeguarding Admin Resource","4112","Public Transport","12/11/2018"
"Wolverhampton City Council","http://opendatacommunities.org/id/metropolitan-district-council/wolverhampton","TESCO DELIVERY SAVER2","3.49","Towers Outdoor Education Centre","5968","Provisions (Not for resale)","12/11/2018"
"Wolverhampton City Council","http://opendatacommunities.org/id/metropolitan-district-council/wolverhampton","Central Taxis Limited","6.30","EIP Locality 4","4121","Grant Payments","12/11/2018"
"Wolverhampton City Council","http://opendatacommunities.org/id/metropolitan-district-council/wolverhampton","WOLVERHAMPTON SST","6.50","Economic Development","4112","Public Transport","12/11/2018"
"Wolverhampton City Council","http://opendatacommunities.org/id/metropolitan-district-council/wolverhampton","PARTRIDGE & PRINT","378.00","Fostering Team & Allowances","8299","Training Expenses","12/11/2018"
"Wolverhampton City Council","http://opendatacommunities.org/id/metropolitan-district-council/wolverhampton","BRITANNIA","180.00","Emergency Duty Team","7011","Services - Supplies & Services to users","12/11/2018"
"Wolverhampton City Council","http://opendatacommunities.org/id/metropolitan-district-council/wolverhampton","JOB FAIRS LIMITED","295.00","Communications & Marketing - General","7311","Marketing \ Non-staff advertising","12/11/2018"
"Wolverhampton City Council","http://opendatacommunities.org/id/metropolitan-district-council/wolverhampton","Amazon.co.uk M82EV4OK4","33.29","Communications & Marketing - General","5969","Equipment - Purchase","12/11/2018"
"Wolverhampton City Council","http://opendatacommunities.org/id/metropolitan-district-council/wolverhampton","GOOGLE  ADS9680351324","500.00","Communications & Marketing - General","5968","Subscriptions","12/11/2018"
"Wolverhampton City Council","http://opendatacommunities.org/id/metropolitan-district-council/wolverhampton","PRODUCT SUPPORT AG","6.66","Headstart - Young People Engagement","5968","Computing - Maint Agreements","12/11/2018"
"Wolverhampton City Council","http://opendatacommunities.org/id/metropolitan-district-council/wolverhampton","PRODUCT SUPPORT AG","6.66","Headstart - Young People Engagement","5968","Computing - Maint Agreements","12/11/2018"
"Wolverhampton City Council","http://opendatacommunities.org/id/metropolitan-district-council/wolverhampton","BLOOMS MENSWEAR","41.67","Mayoral Expenses","5611","Clothing / Uniforms","12/11/2018"
"Wolverhampton City Council","http://opendatacommunities.org/id/metropolitan-district-council/wolverhampton","MARKS&SPENCER PLC SACA","18.90","Admin & Support","5411","Provisions (Not for resale)","12/11/2018"
"Wolverhampton City Council","http://opendatacommunities.org/id/metropolitan-district-council/wolverhampton","RESPONSTER PLUS PLAN","15.07","City Direct","5734","Computing - Purchase of Software","12/11/2018"
"Wolverhampton City Council","http://opendatacommunities.org/id/metropolitan-district-council/wolverhampton","Amazon.co.uk M892U8FB4","16.66","Strategic ICTS (ICT Serv Budget)","5969","Equipment - Purchase","12/11/2018"
"Wolverhampton City Council","http://opendatacommunities.org/id/metropolitan-district-council/wolverhampton","POST OFFICE COUNTER","2.47","Cemeteries","9402","Comms - Postage","12/11/2018"
"Wolverhampton City Council","http://opendatacommunities.org/id/metropolitan-district-council/wolverhampton","Trainline","82.19","LAC Transitions Team","4112","Public Transport","12/11/2018"
"Wolverhampton City Council","http://opendatacommunities.org/id/metropolitan-district-council/wolverhampton","Oyster Online","10.00","Delivery & OCE Development","4112","Public Transport","12/11/2018"
"Wolverhampton City Council","http://opendatacommunities.org/id/metropolitan-district-council/wolverhampton","POST OFFICE COUNTER","33.50","Intensive Family Support Team","9402","Comms - Postage","12/11/2018"
"Wolverhampton City Council","http://opendatacommunities.org/id/metropolitan-district-council/wolverhampton","ASDA GROCERIES ONLINE","-1.02","Upper Pendeford Farm Childrens Home","5411","Provisions (Not for resale)","12/11/2018"
"Wolverhampton City Council","http://opendatacommunities.org/id/metropolitan-district-council/wolverhampton","Audible.co.uk","7.99","Upper Pendeford Farm Childrens Home","5968","Subscriptions","12/11/2018"
"Wolverhampton City Council","http://opendatacommunities.org/id/metropolitan-district-council/wolverhampton","ASDA GROCERIES ONLINE","255.27","Upper Pendeford Farm Childrens Home","5411","Provisions (Not for resale)","12/11/2018"
"Wolverhampton City Council","http://opendatacommunities.org/id/metropolitan-district-council/wolverhampton","Virgin Trains","103.10","LAC Team","4112","Public Transport","12/11/2018"
"Wolverhampton City Council","http://opendatacommunities.org/id/metropolitan-district-council/wolverhampton","ASDA GROCERIES ONLINE","5.00","Upper Pendeford Farm Childrens Home","5411","Provisions (Not for resale)","12/11/2018"
"Wolverhampton City Council","http://opendatacommunities.org/id/metropolitan-district-council/wolverhampton","ARGOS DIRECT","56.62","Mental Health Assessment & Care Mgmt","5310","Equipment - Purchase","12/11/2018"
"Wolverhampton City Council","http://opendatacommunities.org/id/metropolitan-district-council/wolverhampton","DUNELM (SOFT FURNISHIN","8.00","Service Wide","5714","Equipment - Purchase","12/11/2018"
"Wolverhampton City Council","http://opendatacommunities.org/id/metropolitan-district-council/wolverhampton","HMSHOST BELFAST AIRPOR","4.00","Art Gallery","5812","Subsistence","12/11/2018"
"Wolverhampton City Council","http://opendatacommunities.org/id/metropolitan-district-council/wolverhampton","HMSHOST BELFAST AIRPOR","5.00","Art Gallery","5812","Subsistence","12/11/2018"
"Wolverhampton City Council","http://opendatacommunities.org/id/metropolitan-district-council/wolverhampton","Amazon.co.uk M81152OY4","66.22","Archives","5969","Computing - Consumables","12/11/2018"
"Wolverhampton City Council","http://opendatacommunities.org/id/metropolitan-district-council/wolverhampton","AMZN Mktp UK M84YM3F04","10.48","EIP Locality 1","5942","Equipment - Purchase","12/11/2018"
"Wolverhampton City Council","http://opendatacommunities.org/id/metropolitan-district-council/wolverhampton","AMZN MKTP UK M854Z0C44","28.19","EIP Locality 1","5942","Equipment - Purchase","12/11/2018"
"Wolverhampton City Council","http://opendatacommunities.org/id/metropolitan-district-council/wolverhampton","VIRGIN MEDIS PYMTS","15.00","Community Enablement","4814","Comms - Telephone Call charges","12/11/2018"
"Wolverhampton City Council","http://opendatacommunities.org/id/metropolitan-district-council/wolverhampton","WEST MID TRAVEL","446.90","Community Enablement","4131","Public Transport","12/11/2018"
"Wolverhampton City Council","http://opendatacommunities.org/id/metropolitan-district-council/wolverhampton","PREMIER INN","160.83","SEN Sensory Inclusion","3811","Training Expenses","12/11/2018"
"Wolverhampton City Council","http://opendatacommunities.org/id/metropolitan-district-council/wolverhampton","ASDA GROCERIES ONLINE","42.58","Creative Studies Delivery Area","5411","Provisions (Not for resale)","12/11/2018"
"Wolverhampton City Council","http://opendatacommunities.org/id/metropolitan-district-council/wolverhampton","WIX.COM","93.13","Technical Support","5968","Subscriptions","12/11/2018"
"Wolverhampton City Council","http://opendatacommunities.org/id/metropolitan-district-council/wolverhampton","AMZN MKTP UK M894334L4","32.27","Education And Access","5942","Materials","12/11/2018"
"Wolverhampton City Council","http://opendatacommunities.org/id/metropolitan-district-council/wolverhampton","FACEBK 6FELJHN6C2","3.00","Education And Access","7311","Marketing \ Non-staff advertising","12/11/2018"
"Wolverhampton City Council","http://opendatacommunities.org/id/metropolitan-district-council/wolverhampton","BAKER ROSS","96.50","Education And Access","5970","Materials","12/11/2018"
"Wolverhampton City Council","http://opendatacommunities.org/id/metropolitan-district-council/wolverhampton","THE MET","182.42","Head of Service - CINCP","7011","Services - Supplies & Services to users","12/11/2018"
"Wolverhampton City Council","http://opendatacommunities.org/id/metropolitan-district-council/wolverhampton","MART LEISURE SYSTEMS","645.00","Central Training","5734","Training Expenses","12/11/2018"
"Wolverhampton City Council","http://opendatacommunities.org/id/metropolitan-district-council/wolverhampton","HMCOURTS-SERVICE.G","20.00","CIN/CP Social Work Unit - Area 4","9222","Section 17","12/11/2018"
"Wolverhampton City Council","http://opendatacommunities.org/id/metropolitan-district-council/wolverhampton","AMZN Mktp UK M88L34O94","27.99","Music Support Team","5942","Equipment - R & M","12/11/2018"
"Wolverhampton City Council","http://opendatacommunities.org/id/metropolitan-district-council/wolverhampton","ASDA GROCERIES ONLINE","-0.84","Duke Street Bungalows","5411","Provisions (Not for resale)","12/11/2018"
"Wolverhampton City Council","http://opendatacommunities.org/id/metropolitan-district-council/wolverhampton","ASDA GROCERIES ONLINE","216.05","Duke Street Bungalows","5411","Provisions (Not for resale)","12/11/2018"
"Wolverhampton City Council","http://opendatacommunities.org/id/metropolitan-district-council/wolverhampton","Trainline","62.48","Admin & Support","4112","Public Transport","09/11/2018"
"Wolverhampton City Council","http://opendatacommunities.org/id/metropolitan-district-council/wolverhampton","Trainline","278.89","Admin & Support","4112","Public Transport","09/11/2018"
"Wolverhampton City Council","http://opendatacommunities.org/id/metropolitan-district-council/wolverhampton","Trainline","17.02","Admin & Support","4112","Public Transport","09/11/2018"
"Wolverhampton City Council","http://opendatacommunities.org/id/metropolitan-district-council/wolverhampton","Trainline","27.18","Admin & Support","4112","Public Transport","09/11/2018"
"Wolverhampton City Council","http://opendatacommunities.org/id/metropolitan-district-council/wolverhampton","Amazon.co.uk M86D09CQ4","20.17","City Direct","5969","Equipment - Purchase","09/11/2018"
"Wolverhampton City Council","http://opendatacommunities.org/id/metropolitan-district-council/wolverhampton","Amazon.co.uk M879Y2C04","90.85","LAC Transitions Team","5969","Client Allowances","09/11/2018"
"Wolverhampton City Council","http://opendatacommunities.org/id/metropolitan-district-council/wolverhampton","Virgin Trains","144.00","LAC Team","4112","Public Transport","09/11/2018"
"Wolverhampton City Council","http://opendatacommunities.org/id/metropolitan-district-council/wolverhampton","MEDIA & COMMUNICATIONS","400.00","Strategic ICTS (ICT Serv Budget)","4812","Computing - Purchase of Hardware","09/11/2018"
"Wolverhampton City Council","http://opendatacommunities.org/id/metropolitan-district-council/wolverhampton","Amazon.co.uk MT1K52YY4","4.32","Strategic ICTS (ICT Serv Budget)","5969","Equipment - Purchase","09/11/2018"
"Wolverhampton City Council","http://opendatacommunities.org/id/metropolitan-district-council/wolverhampton","Trainline","78.64","LAC Transitions Team","4112","Public Transport","09/11/2018"
"Wolverhampton City Council","http://opendatacommunities.org/id/metropolitan-district-council/wolverhampton","Amazon Prime M886O7CU4","6.66","Upper Pendeford Farm Childrens Home","5968","Subscriptions","09/11/2018"
"Wolverhampton City Council","http://opendatacommunities.org/id/metropolitan-district-council/wolverhampton","Amazon Prime","-6.66","Mental Health Assessment & Care Mgmt","5968","Subscriptions","09/11/2018"
"Wolverhampton City Council","http://opendatacommunities.org/id/metropolitan-district-council/wolverhampton","Amazon Prime","-6.66","Mental Health Assessment & Care Mgmt","5968","Subscriptions","09/11/2018"
"Wolverhampton City Council","http://opendatacommunities.org/id/metropolitan-district-council/wolverhampton","DUNELM (SOFT FURNISHIN","12.00","Service Wide","5714","Equipment - Purchase","09/11/2018"
"Wolverhampton City Council","http://opendatacommunities.org/id/metropolitan-district-council/wolverhampton","ARGOS LTD","33.32","LAC Transitions Team","5310","Client Allowances","09/11/2018"
"Wolverhampton City Council","http://opendatacommunities.org/id/metropolitan-district-council/wolverhampton","SSE","111.73","LAC Transitions Team","4900","Client Allowances","09/11/2018"
"Wolverhampton City Council","http://opendatacommunities.org/id/metropolitan-district-council/wolverhampton","SSE","122.62","LAC Transitions Team","4900","Client Allowances","09/11/2018"
"Wolverhampton City Council","http://opendatacommunities.org/id/metropolitan-district-council/wolverhampton","ABEBOOKS.UK FPNZHV","12.20","Archives","5192","Books","09/11/2018"
"Wolverhampton City Council","http://opendatacommunities.org/id/metropolitan-district-council/wolverhampton","AMZN Mktp UK MT4SZ3YU4","73.60","Headstart - Employability","5942","Stationery","09/11/2018"
"Wolverhampton City Council","http://opendatacommunities.org/id/metropolitan-district-council/wolverhampton","THE MIDLAND","275.00","Children & Young People Support Costs","7011","Accommodation Costs","09/11/2018"
"Wolverhampton City Council","http://opendatacommunities.org/id/metropolitan-district-council/wolverhampton","AMZN MKTP UK M83DF6CU4","16.62","Global Budgets","5942","Stationery","09/11/2018"
"Wolverhampton City Council","http://opendatacommunities.org/id/metropolitan-district-council/wolverhampton","AMZN MKTP UK MT3863Y14","18.22","Global Budgets","5942","Books","09/11/2018"
"Wolverhampton City Council","http://opendatacommunities.org/id/metropolitan-district-council/wolverhampton","BOOTS 6122","15.00","EIP Locality 3","5912","Grant Payments","09/11/2018"
"Wolverhampton City Council","http://opendatacommunities.org/id/metropolitan-district-council/wolverhampton","HOME BARGAINS","25.30","LAC Transitions Team","5251","Client Allowances","09/11/2018"
"Wolverhampton City Council","http://opendatacommunities.org/id/metropolitan-district-council/wolverhampton","ARGOS LTD","33.33","LAC Transitions Team","5310","Client Allowances","09/11/2018"
"Wolverhampton City Council","http://opendatacommunities.org/id/metropolitan-district-council/wolverhampton","ARGOS LTD","164.93","LAC Transitions Team","5310","Client Allowances","09/11/2018"
"Wolverhampton City Council","http://opendatacommunities.org/id/metropolitan-district-council/wolverhampton","LAKELAND LIMITED","25.96","Civic Centre Catering","5399","Equipment - Purchase","09/11/2018"
"Wolverhampton City Council","http://opendatacommunities.org/id/metropolitan-district-council/wolverhampton","UNTOUCHABLES","16.25","Education Catering - General Overheads","5231","Materials","09/11/2018"
"Wolverhampton City Council","http://opendatacommunities.org/id/metropolitan-district-council/wolverhampton","Trainline","180.34","Corporate Procurement Unit","4112","Public Transport","09/11/2018"
"Wolverhampton City Council","http://opendatacommunities.org/id/metropolitan-district-council/wolverhampton","Trainline","59.44","Corporate Procurement Unit","4112","Public Transport","09/11/2018"
"Wolverhampton City Council","http://opendatacommunities.org/id/metropolitan-district-council/wolverhampton","Virgin Trains","156.00","Welfare Rights","4112","Public Transport","09/11/2018"
"Wolverhampton City Council","http://opendatacommunities.org/id/metropolitan-district-council/wolverhampton","CITY OF WOLVERHAMPTON","60.00","Head of Service - CINCP","9399","Services - Professional Fees","09/11/2018"
"Wolverhampton City Council","http://opendatacommunities.org/id/metropolitan-district-council/wolverhampton","Trainline","128.02","Legal Services","4112","Public Transport","09/11/2018"
"Wolverhampton City Council","http://opendatacommunities.org/id/metropolitan-district-council/wolverhampton","Virgin Trains","200.70","Adult MASH","4112","Public Transport","09/11/2018"
"Wolverhampton City Council","http://opendatacommunities.org/id/metropolitan-district-council/wolverhampton","Trainline","34.29","CIN/CP Social Work Unit - Area 4","4112","Section 17","09/11/2018"
"Wolverhampton City Council","http://opendatacommunities.org/id/metropolitan-district-council/wolverhampton","ACP  Music Shop Europe","54.00","Music Support Team","2741","Equipment - R & M","09/11/2018"
"Wolverhampton City Council","http://opendatacommunities.org/id/metropolitan-district-council/wolverhampton","Amazon.co.uk M87PG8CM4","12.25","Music Support Team","5969","Equipment - R & M","09/11/2018"
"Wolverhampton City Council","http://opendatacommunities.org/id/metropolitan-district-council/wolverhampton","SP   CHAMBERLAIN MUSIC","34.95","Music Support Team","5733","Equipment - R & M","09/11/2018"
"Wolverhampton City Council","http://opendatacommunities.org/id/metropolitan-district-council/wolverhampton","Amazon.co.uk MT3S25YD4","13.75","Landscape","5969","Equipment - Purchase","09/11/2018"
"Wolverhampton City Council","http://opendatacommunities.org/id/metropolitan-district-council/wolverhampton","Virgin Trains","90.20","Planning","4112","Public Transport","09/11/2018"
"Wolverhampton City Council","http://opendatacommunities.org/id/metropolitan-district-council/wolverhampton","LION PICTURE FRAMING S","69.20","Technician","5999","R4007","09/11/2018"
"Wolverhampton City Council","http://opendatacommunities.org/id/metropolitan-district-council/wolverhampton","LION PICTURE FRAMING S","623.34","Bantock House Museum - Exhibitions","5999","Equipment - Purchase","09/11/2018"
"Wolverhampton City Council","http://opendatacommunities.org/id/metropolitan-district-council/wolverhampton","FACEBK 6WGNVGAG52","133.07","Outdoor Events Admin","7311","Marketing \ Non-staff advertising","09/11/2018"
"Wolverhampton City Council","http://opendatacommunities.org/id/metropolitan-district-council/wolverhampton","CPLTRAINING","168.00","Mayoral Expenses","8220","Training Expenses","09/11/2018"
"Wolverhampton City Council","http://opendatacommunities.org/id/metropolitan-district-council/wolverhampton","WOLVERHAMPTON CC","3.33","Headstart Phase 3","7523","Parking Fees","09/11/2018"
"Wolverhampton City Council","http://opendatacommunities.org/id/metropolitan-district-council/wolverhampton","WOLVERHAMPTON CC","3.33","Headstart Phase 3","7523","Parking Fees","09/11/2018"
"Wolverhampton City Council","http://opendatacommunities.org/id/metropolitan-district-council/wolverhampton","PREMIER","7.64","Bradley Resource Centre","5499","Services - Supplies & Services to users","09/11/2018"
"Wolverhampton City Council","http://opendatacommunities.org/id/metropolitan-district-council/wolverhampton","POST OFFICE COUNTER","1.26","Radical Landscapes","9402","Comms - Postage","09/11/2018"
"Wolverhampton City Council","http://opendatacommunities.org/id/metropolitan-district-council/wolverhampton","DIANE LAWSON LTD","37.50","Mayoral Expenses","5992","Hospitality","09/11/2018"
"Wolverhampton City Council","http://opendatacommunities.org/id/metropolitan-district-council/wolverhampton","000002200500000","250.00","Childrens with Disabilities Team","6011","No Recourse to Public Funds","09/11/2018"
"Wolverhampton City Council","http://opendatacommunities.org/id/metropolitan-district-council/wolverhampton","MIDLAND DOMESTIC","207.50","LAC Transitions Team","5722","Client Allowances","09/11/2018"
"Wolverhampton City Council","http://opendatacommunities.org/id/metropolitan-district-council/wolverhampton","ROYAL CARPETS","154.17","LAC Transitions Team","5713","Client Allowances","09/11/2018"
"Wolverhampton City Council","http://opendatacommunities.org/id/metropolitan-district-council/wolverhampton","POST OFFICE COUNTER","7.30","Adoption and Residence Team & Allowances","9402","Comms - Postage","09/11/2018"
"Wolverhampton City Council","http://opendatacommunities.org/id/metropolitan-district-council/wolverhampton","MONA LIFTING LIMITED","215.00","Towers Outdoor Education Centre","5599","Equipment - Purchase","09/11/2018"
"Wolverhampton City Council","http://opendatacommunities.org/id/metropolitan-district-council/wolverhampton","DEBENHAMS","40.00","Delivery & OCE Development","5311","Equipment - Purchase","09/11/2018"
"Wolverhampton City Council","http://opendatacommunities.org/id/metropolitan-district-council/wolverhampton","WM MORRISONS STORE","2.00","Ernest Bold Court","5411","Provisions (Not for resale)","09/11/2018"
"Wolverhampton City Council","http://opendatacommunities.org/id/metropolitan-district-council/wolverhampton","SAINSBURYS PFS (1340)","3.33","Mayoral Expenses","5541","Vehicle Maintenance - Repairs","09/11/2018"
"Wolverhampton City Council","http://opendatacommunities.org/id/metropolitan-district-council/wolverhampton","ARGOS RETAIL GROUP","199.98","Upper Pendeford Farm Childrens Home","5310","Equipment - Purchase","08/11/2018"
"Wolverhampton City Council","http://opendatacommunities.org/id/metropolitan-district-council/wolverhampton","Trainline","989.58","Head of Strategic Commissioning � People","4112","Public Transport","08/11/2018"
"Wolverhampton City Council","http://opendatacommunities.org/id/metropolitan-district-council/wolverhampton","Trainline","223.52","Head of Strategic Commissioning � People","4112","Public Transport","08/11/2018"
"Wolverhampton City Council","http://opendatacommunities.org/id/metropolitan-district-council/wolverhampton","WWW.ARGOS.CO.UK","89.98","EIP Locality 5","5310","Grant Payments","08/11/2018"
"Wolverhampton City Council","http://opendatacommunities.org/id/metropolitan-district-council/wolverhampton","PRET A MANGER","8.72","Art Gallery","5812","Subsistence","08/11/2018"
"Wolverhampton City Council","http://opendatacommunities.org/id/metropolitan-district-council/wolverhampton","WOLVERHAMPTON T/O","8.40","Art Gallery","4112","Public Transport","08/11/2018"
"Wolverhampton City Council","http://opendatacommunities.org/id/metropolitan-district-council/wolverhampton","VIKING","17.46","Archives","5111","Stationery","08/11/2018"
"Wolverhampton City Council","http://opendatacommunities.org/id/metropolitan-district-council/wolverhampton","SCREWFIX DIRECT LT","3.16","Culwell Street Depot","5211","Equipment - Purchase","08/11/2018"
"Wolverhampton City Council","http://opendatacommunities.org/id/metropolitan-district-council/wolverhampton","AMZN Mktp UK MT0FW3WM4","2.49","Upper Pendeford Farm Childrens Home","5942","Books","08/11/2018"
"Wolverhampton City Council","http://opendatacommunities.org/id/metropolitan-district-council/wolverhampton","BIRMINGHAMTELECOM","61.13","MASH","4812","Equipment - Health and Safety","08/11/2018"
"Wolverhampton City Council","http://opendatacommunities.org/id/metropolitan-district-council/wolverhampton","ASDA GROCERIES ONLINE","-1.00","Duke Street Bungalows","5411","Provisions (Not for resale)","08/11/2018"
"Wolverhampton City Council","http://opendatacommunities.org/id/metropolitan-district-council/wolverhampton","ASDA GROCERIES ONLINE","-0.55","Duke Street Bungalows","5411","Provisions (Not for resale)","08/11/2018"
"Wolverhampton City Council","http://opendatacommunities.org/id/metropolitan-district-council/wolverhampton","ASDA GROCERIES ONLINE","181.17","Duke Street Bungalows","5411","Provisions (Not for resale)","08/11/2018"
"Wolverhampton City Council","http://opendatacommunities.org/id/metropolitan-district-council/wolverhampton","AMZN Mktp UK MT0C86WY4","17.07","Employment Programmes","5942","Books","08/11/2018"
"Wolverhampton City Council","http://opendatacommunities.org/id/metropolitan-district-council/wolverhampton","Trainline","19.76","SEN Special Education Admin","4112","Public Transport","08/11/2018"
"Wolverhampton City Council","http://opendatacommunities.org/id/metropolitan-district-council/wolverhampton","Trainline","53.34","Head of Service - CINCP","4112","Public Transport","08/11/2018"
"Wolverhampton City Council","http://opendatacommunities.org/id/metropolitan-district-council/wolverhampton","Trainline","136.45","Head of Service - CINCP","4112","Public Transport","08/11/2018"
"Wolverhampton City Council","http://opendatacommunities.org/id/metropolitan-district-council/wolverhampton","Trainline","69.49","Service Director Adults","4112","Public Transport","08/11/2018"
"Wolverhampton City Council","http://opendatacommunities.org/id/metropolitan-district-council/wolverhampton","Virgin Trains","26.00","City Centre","4112","Services - Fees and Charges","08/11/2018"
"Wolverhampton City Council","http://opendatacommunities.org/id/metropolitan-district-council/wolverhampton","J VAN VLIET BIRMINGHAM","3.95","Creative Studies Delivery Area","5399","Materials for resale","08/11/2018"
"Wolverhampton City Council","http://opendatacommunities.org/id/metropolitan-district-council/wolverhampton","J VAN VLIET BIRMINGHAM","69.75","Creative Studies Delivery Area","5399","Materials for resale","08/11/2018"
"Wolverhampton City Council","http://opendatacommunities.org/id/metropolitan-district-council/wolverhampton","TELFORD GROUP LTD","28.35","Fleet Management","5085","Equipment - Purchase","08/11/2018"
"Wolverhampton City Council","http://opendatacommunities.org/id/metropolitan-district-council/wolverhampton","Trainline","-22.70","CIN/CP Social Work Unit - Area 4","4112","Public Transport","08/11/2018"
"Wolverhampton City Council","http://opendatacommunities.org/id/metropolitan-district-council/wolverhampton","Virgin Trains","76.90","Members Expenses","4112","Public Transport","08/11/2018"
"Wolverhampton City Council","http://opendatacommunities.org/id/metropolitan-district-council/wolverhampton","CUMMINGS BROTHERS LOCK","16.67","Northicote Farm","7399","Equipment - Purchase","08/11/2018"
"Wolverhampton City Council","http://opendatacommunities.org/id/metropolitan-district-council/wolverhampton","CARVER/WOLVERHAMPTON/L","41.76","Northicote Farm","5211","Materials","08/11/2018"
"Wolverhampton City Council","http://opendatacommunities.org/id/metropolitan-district-council/wolverhampton","Virgin Trains","45.50","Members Expenses","4112","Public Transport","08/11/2018"
"Wolverhampton City Council","http://opendatacommunities.org/id/metropolitan-district-council/wolverhampton","CAMIRA FABRICS","111.50","Contemporary Gallery","5714","R4007","08/11/2018"
"Wolverhampton City Council","http://opendatacommunities.org/id/metropolitan-district-council/wolverhampton","WICKES BUILDING","31.62","Contemporary Gallery","5211","Materials","08/11/2018"
"Wolverhampton City Council","http://opendatacommunities.org/id/metropolitan-district-council/wolverhampton","PAYPAL  ROUTE66EURO","5.45","Technician","5533","R4007","08/11/2018"
"Wolverhampton City Council","http://opendatacommunities.org/id/metropolitan-district-council/wolverhampton","PAYPAL  DALEDOWNWAR","6.49","Bantock House Museum - Exhibitions","5099","Equipment - Purchase","08/11/2018"
"Wolverhampton City Council","http://opendatacommunities.org/id/metropolitan-district-council/wolverhampton","WWW.JUSTGLOVES.CO.UK","81.00","Technician","5999","Equipment - Purchase","08/11/2018"
"Wolverhampton City Council","http://opendatacommunities.org/id/metropolitan-district-council/wolverhampton","E H SMITH - CANNOCK (5","115.92","Contemporary Gallery","5211","Materials","08/11/2018"
"Wolverhampton City Council","http://opendatacommunities.org/id/metropolitan-district-council/wolverhampton","Virgin Trains","76.00","Director of Education","4112","Public Transport","08/11/2018"
"Wolverhampton City Council","http://opendatacommunities.org/id/metropolitan-district-council/wolverhampton","Virgin Trains","132.80","Quality Assurance & Policies","4112","Public Transport","08/11/2018"
"Wolverhampton City Council","http://opendatacommunities.org/id/metropolitan-district-council/wolverhampton","Trainline","146.81","General Housing Administration","4112","Public Transport","08/11/2018"
"Wolverhampton City Council","http://opendatacommunities.org/id/metropolitan-district-council/wolverhampton","BLOXWICH  SST","6.00","Economic Development","4112","Public Transport","08/11/2018"
"Wolverhampton City Council","http://opendatacommunities.org/id/metropolitan-district-council/wolverhampton","iZ  HIDE BURGER BA","4.33","Economic Development","5812","Educ Trips, Holidays, Outings, Activity","08/11/2018"
"Wolverhampton City Council","http://opendatacommunities.org/id/metropolitan-district-council/wolverhampton","Trainline","82.80","Service Development Team","4112","Public Transport","08/11/2018"
"Wolverhampton City Council","http://opendatacommunities.org/id/metropolitan-district-council/wolverhampton","AMZN Mktp UK MT1ZJ1YH4","15.99","Communications & Marketing - General","5942","Books","08/11/2018"
"Wolverhampton City Council","http://opendatacommunities.org/id/metropolitan-district-council/wolverhampton","WWW.WMCA.CO.UK","122.00","IMPACT","9399","Client Transport","08/11/2018"
"Wolverhampton City Council","http://opendatacommunities.org/id/metropolitan-district-council/wolverhampton","Trainline","13.58","Economic Development","4112","Public Transport","08/11/2018"
"Wolverhampton City Council","http://opendatacommunities.org/id/metropolitan-district-council/wolverhampton","AMZN Mktp UK MT2UX8Y24","80.42","Bert Williams Leisure Centre","5942","Equipment - Purchase","08/11/2018"
"Wolverhampton City Council","http://opendatacommunities.org/id/metropolitan-district-council/wolverhampton","ASDA SUPERSTORE","35.20","Mayoral Expenses","5411","Provisions (Not for resale)","08/11/2018"
"Wolverhampton City Council","http://opendatacommunities.org/id/metropolitan-district-council/wolverhampton","MARKS&SPENCER PLC SACA","10.30","Admin & Support","5411","Provisions (Not for resale)","08/11/2018"
"Wolverhampton City Council","http://opendatacommunities.org/id/metropolitan-district-council/wolverhampton","Trainline","186.94","Admin & Support","4112","Public Transport","08/11/2018"
"Wolverhampton City Council","http://opendatacommunities.org/id/metropolitan-district-council/wolverhampton","Virgin Trains","73.40","Fostering Team & Allowances","4112","Public Transport","08/11/2018"
"Wolverhampton City Council","http://opendatacommunities.org/id/metropolitan-district-council/wolverhampton","Trainline","40.69","LAC Transitions Team","4112","Client Allowances","08/11/2018"
"Wolverhampton City Council","http://opendatacommunities.org/id/metropolitan-district-council/wolverhampton","AMZN Mktp UK MT7DE9WU4","6.92","Strategic ICTS (ICT Serv Budget)","5942","Computing - Consumables","08/11/2018"
"Wolverhampton City Council","http://opendatacommunities.org/id/metropolitan-district-council/wolverhampton","WWW.LIFESAVERSDIRECT","32.50","Workforce Development","5965","Training Expenses","08/11/2018"
"Wolverhampton City Council","http://opendatacommunities.org/id/metropolitan-district-council/wolverhampton","THE MIDLAND","275.00","Director of Education","7011","Services - Supplies & Services to users","07/11/2018"
"Wolverhampton City Council","http://opendatacommunities.org/id/metropolitan-district-council/wolverhampton","WM MORRISON FOOD.COM","88.17","Discretionary Fund","5411","Materials","07/11/2018"
"Wolverhampton City Council","http://opendatacommunities.org/id/metropolitan-district-council/wolverhampton","AMZN Mktp UK MT65S0RS4","5.98","EIP Locality 8","5942","Stationery","07/11/2018"
"Wolverhampton City Council","http://opendatacommunities.org/id/metropolitan-district-council/wolverhampton","Trainline","24.84","Safeguarding Admin Resource","4112","Public Transport","07/11/2018"
"Wolverhampton City Council","http://opendatacommunities.org/id/metropolitan-district-council/wolverhampton","Trainline","20.98","Safeguarding Admin Resource","4112","Public Transport","07/11/2018"
"Wolverhampton City Council","http://opendatacommunities.org/id/metropolitan-district-council/wolverhampton","HARLECH FOODSERVICE LT","170.00","Towers Outdoor Education Centre","5422","Provisions (Not for resale)","07/11/2018"
"Wolverhampton City Council","http://opendatacommunities.org/id/metropolitan-district-council/wolverhampton","POST OFFICE COUNTER","177.00","Fostering Team & Allowances","9402","Comms - Postage","07/11/2018"
"Wolverhampton City Council","http://opendatacommunities.org/id/metropolitan-district-council/wolverhampton","GOOGLE  ADS3317949200","308.01","Communications & Marketing - General","5968","Subscriptions","07/11/2018"
"Wolverhampton City Council","http://opendatacommunities.org/id/metropolitan-district-council/wolverhampton","NAMESCO","34.99","City Direct","4816","Computing - Purchase of Software","07/11/2018"
"Wolverhampton City Council","http://opendatacommunities.org/id/metropolitan-district-council/wolverhampton","FTPE WEBTIS 1","73.40","LAC Education Team (LACE)","4112","Public Transport","07/11/2018"
"Wolverhampton City Council","http://opendatacommunities.org/id/metropolitan-district-council/wolverhampton","ASDA SUPERSTORE","305.21","LAC Transitions Team","5411","Client Allowances","07/11/2018"
"Wolverhampton City Council","http://opendatacommunities.org/id/metropolitan-district-council/wolverhampton","UNTOUCHABLES","12.50","Cemeteries","5231","Materials","07/11/2018"
"Wolverhampton City Council","http://opendatacommunities.org/id/metropolitan-district-council/wolverhampton","ASDA SUPERSTORE","46.98","EIP Locality 6","5411","Provisions (Not for resale)","07/11/2018"
"Wolverhampton City Council","http://opendatacommunities.org/id/metropolitan-district-council/wolverhampton","Trainline","32.77","LAC Transitions Team","4112","Client Allowances","07/11/2018"
"Wolverhampton City Council","http://opendatacommunities.org/id/metropolitan-district-council/wolverhampton","AMZN Mktp UK MT7VO6RJ4","8.28","Upper Pendeford Farm Childrens Home","5942","Books","07/11/2018"
"Wolverhampton City Council","http://opendatacommunities.org/id/metropolitan-district-council/wolverhampton","AMZN Mktp UK MT8YW4I74","9.96","Upper Pendeford Farm Childrens Home","5942","Books","07/11/2018"
"Wolverhampton City Council","http://opendatacommunities.org/id/metropolitan-district-council/wolverhampton","Central Taxis Limited","48.90","LAC Team","4121","Client Transport","07/11/2018"
"Wolverhampton City Council","http://opendatacommunities.org/id/metropolitan-district-council/wolverhampton","AMZN Mktp UK MT5363IP4","14.00","Creative Studies Delivery Area","5942","Equipment - Purchase","07/11/2018"
"Wolverhampton City Council","http://opendatacommunities.org/id/metropolitan-district-council/wolverhampton","FlybeA5WZ A5WZYT","39.56","Art Gallery","4511","Public Transport","07/11/2018"
"Wolverhampton City Council","http://opendatacommunities.org/id/metropolitan-district-council/wolverhampton","AMZN MKTP UK MT2HT1IL4","29.70","Headstart - Employability","5942","Stationery","07/11/2018"
"Wolverhampton City Council","http://opendatacommunities.org/id/metropolitan-district-council/wolverhampton","AMZN Mktp UK MT9VS4IV4","3.12","Headstart - Employability","5942","Stationery","07/11/2018"
"Wolverhampton City Council","http://opendatacommunities.org/id/metropolitan-district-council/wolverhampton","LOYD 37 CHURCH STREET","200.00","Duke Street Bungalows","6011","Provisions (Not for resale)","07/11/2018"
"Wolverhampton City Council","http://opendatacommunities.org/id/metropolitan-district-council/wolverhampton","BANANAPRINT","19.62","Learning Technologies","8931","Services - Professional Fees","07/11/2018"
"Wolverhampton City Council","http://opendatacommunities.org/id/metropolitan-district-council/wolverhampton","CardtronicsUK","30.00","EIP Locality 3","6011","Grant Payments","07/11/2018"
"Wolverhampton City Council","http://opendatacommunities.org/id/metropolitan-district-council/wolverhampton","ROYAL CARPETS","150.00","LAC Transitions Team","5713","Client Allowances","07/11/2018"
"Wolverhampton City Council","http://opendatacommunities.org/id/metropolitan-district-council/wolverhampton","WOLVERHAMPTON T/O","7.80","Service Director Adults","4112","Public Transport","07/11/2018"
"Wolverhampton City Council","http://opendatacommunities.org/id/metropolitan-district-council/wolverhampton","Trainline","79.65","Head of Service - LAC","4112","Public Transport","07/11/2018"
"Wolverhampton City Council","http://opendatacommunities.org/id/metropolitan-district-council/wolverhampton","THE MIDLAND","330.00","Service Director Adults","7011","Conference Expenses","07/11/2018"
"Wolverhampton City Council","http://opendatacommunities.org/id/metropolitan-district-council/wolverhampton","AMZN Mktp UK MT1XB5IR4","20.82","Creative Studies Delivery Area","5942","Equipment - Purchase","07/11/2018"
"Wolverhampton City Council","http://opendatacommunities.org/id/metropolitan-district-council/wolverhampton","AMZN Mktp UK MT3UK1R84","18.73","Waste Coll & Recycling Serv General","5942","Equipment - Purchase","07/11/2018"
"Wolverhampton City Council","http://opendatacommunities.org/id/metropolitan-district-council/wolverhampton","SAINSBURYS (2340)","10.20","Civic Centre Catering","5411","Provisions (Not for resale)","07/11/2018"
"Wolverhampton City Council","http://opendatacommunities.org/id/metropolitan-district-council/wolverhampton","RICS COM GBP CYBS","35.00","Central Training","8699","Training Expenses","07/11/2018"
"Wolverhampton City Council","http://opendatacommunities.org/id/metropolitan-district-council/wolverhampton","RICS COM GBP CYBS","47.25","Central Training","8699","Training Expenses","07/11/2018"
"Wolverhampton City Council","http://opendatacommunities.org/id/metropolitan-district-council/wolverhampton","CITY OF WOLVERHAMPTON","30.00","Head of Service - CINCP","9399","Services - Professional Fees","07/11/2018"
"Wolverhampton City Council","http://opendatacommunities.org/id/metropolitan-district-council/wolverhampton","HMCOURTS-SERVICE.G","75.00","Mental Health Assessment & Care Mgmt","9222","Services - Fees and Charges","07/11/2018"
"Wolverhampton City Council","http://opendatacommunities.org/id/metropolitan-district-council/wolverhampton","PREMIER INN","99.16","Inclusion Support","3811","Services - Supplies & Services to users","07/11/2018"
"Wolverhampton City Council","http://opendatacommunities.org/id/metropolitan-district-council/wolverhampton","ASDA SUPERSTORE","32.24","Winter Maintenance","5411","Provisions (Not for resale)","07/11/2018"
"Wolverhampton City Council","http://opendatacommunities.org/id/metropolitan-district-council/wolverhampton","AMZN Mktp UK MT81N0RK4","84.76","Patching","5942","R4007","07/11/2018"
"Wolverhampton City Council","http://opendatacommunities.org/id/metropolitan-district-council/wolverhampton","AMZN Mktp UK MT1HH8I74","75.99","Patching","5942","Materials","07/11/2018"
"Wolverhampton City Council","http://opendatacommunities.org/id/metropolitan-district-council/wolverhampton","POST OFFICE COUNTER","6.50","Adoption and Residence Team & Allowances","9402","Comms - Postage","07/11/2018"
"Wolverhampton City Council","http://opendatacommunities.org/id/metropolitan-district-council/wolverhampton","Virgin Trains","128.20","LAC Team","4112","Public Transport","07/11/2018"
"Wolverhampton City Council","http://opendatacommunities.org/id/metropolitan-district-council/wolverhampton","BRITANNIA","69.17","Destitute Plus","7011","Services - Supplies & Services to users","07/11/2018"
"Wolverhampton City Council","http://opendatacommunities.org/id/metropolitan-district-council/wolverhampton","WWW.WOLVERHAMPTON.GOV.","68.00","LAC Transitions Team","9399","Client Allowances","06/11/2018"
"Wolverhampton City Council","http://opendatacommunities.org/id/metropolitan-district-council/wolverhampton","AMZ Rankie-Direct","-14.97","Strategic ICTS (ICT Serv Budget)","5999","Equipment - Purchase","06/11/2018"
"Wolverhampton City Council","http://opendatacommunities.org/id/metropolitan-district-council/wolverhampton","Amazon.co.uk MT11Z2U54","32.35","Upper Pendeford Farm Childrens Home","5969","Equipment - Purchase","06/11/2018"
"Wolverhampton City Council","http://opendatacommunities.org/id/metropolitan-district-council/wolverhampton","TESCO STORES 5503","18.33","LAC Transitions Team","5411","Client Allowances","06/11/2018"
"Wolverhampton City Council","http://opendatacommunities.org/id/metropolitan-district-council/wolverhampton","WM MORRISONS STORE","14.50","Safeguarding Partnership Board","5411","Provisions (Not for resale)","06/11/2018"
"Wolverhampton City Council","http://opendatacommunities.org/id/metropolitan-district-council/wolverhampton","YOUNG`S SHOE REPAIRS L","92.90","Wolverhampton Indoor and Open Market","7251","Fixtures and Fittings - R&M","06/11/2018"
"Wolverhampton City Council","http://opendatacommunities.org/id/metropolitan-district-council/wolverhampton","WWW.ARGOS.CO.UK","86.61","EIP Locality 1","5310","Equipment - Purchase","06/11/2018"
"Wolverhampton City Council","http://opendatacommunities.org/id/metropolitan-district-council/wolverhampton","TESCO STORES 5397","4.02","EIP Locality 1","5411","Provisions (Not for resale)","06/11/2018"
"Wolverhampton City Council","http://opendatacommunities.org/id/metropolitan-district-council/wolverhampton","SCREWFIX DIRECT LT","38.32","Culwell Street Depot","5211","Equipment - Purchase","06/11/2018"
"Wolverhampton City Council","http://opendatacommunities.org/id/metropolitan-district-council/wolverhampton","WIX.COM","102.00","Technical Support","5817","Computing - Purchase of Software","06/11/2018"
"Wolverhampton City Council","http://opendatacommunities.org/id/metropolitan-district-council/wolverhampton","GREGGS PLC","3.21","Mayoral Expenses","5812","Hospitality","06/11/2018"
"Wolverhampton City Council","http://opendatacommunities.org/id/metropolitan-district-council/wolverhampton","123-REG.CO.UK","170.82","Technical Support","4816","Computing - Purchase of Software","06/11/2018"
"Wolverhampton City Council","http://opendatacommunities.org/id/metropolitan-district-council/wolverhampton","UNTOUCHABLES","12.91","Education Catering - General Overheads","5231","Materials","06/11/2018"
"Wolverhampton City Council","http://opendatacommunities.org/id/metropolitan-district-council/wolverhampton","TRAVELODGE","130.83","Inclusion Support","3615","Services - Supplies & Services to users","06/11/2018"
"Wolverhampton City Council","http://opendatacommunities.org/id/metropolitan-district-council/wolverhampton","TESCO STORES 5503","21.30","Winter Maintenance","5411","Provisions (Not for resale)","06/11/2018"
"Wolverhampton City Council","http://opendatacommunities.org/id/metropolitan-district-council/wolverhampton","WWW.ARGOS.CO.UK","83.94","EIP Locality 7","5310","Equipment - Purchase","06/11/2018"
"Wolverhampton City Council","http://opendatacommunities.org/id/metropolitan-district-council/wolverhampton","AMZN Mktp UK MT8BG0UF4","16.64","EIP Locality 7","5942","Stationery","06/11/2018"
"Wolverhampton City Council","http://opendatacommunities.org/id/metropolitan-district-council/wolverhampton","ASDA GROCERIES ONLINE","-1.00","Ernest Bold Court","5411","Provisions (Not for resale)","06/11/2018"
"Wolverhampton City Council","http://opendatacommunities.org/id/metropolitan-district-council/wolverhampton","ROYAL BK OF SCOTLAND","250.00","CIN/CP Social Work Unit - Area 6","6011","Financial Assistance In Exceptional Circ","06/11/2018"
"Wolverhampton City Council","http://opendatacommunities.org/id/metropolitan-district-council/wolverhampton","CO-OP GROUP 070228","7.02","Towers Outdoor Education Centre","5411","Provisions (Not for resale)","06/11/2018"
"Wolverhampton City Council","http://opendatacommunities.org/id/metropolitan-district-council/wolverhampton","MONARCH CLEANERS LTD","695.34","Towers Outdoor Education Centre","7216","Laundry Expenses","06/11/2018"
"Wolverhampton City Council","http://opendatacommunities.org/id/metropolitan-district-council/wolverhampton","O E METCALFE","358.12","Towers Outdoor Education Centre","5499","Provisions (Not for resale)","06/11/2018"
"Wolverhampton City Council","http://opendatacommunities.org/id/metropolitan-district-council/wolverhampton","CHEMSOL CYMRU LTD","212.20","Towers Outdoor Education Centre","5199","Fixtures and Fittings - Purchases","06/11/2018"
"Wolverhampton City Council","http://opendatacommunities.org/id/metropolitan-district-council/wolverhampton","FUEL CARD SERVICES LTD","404.16","Towers Outdoor Education Centre","7399","Petrol","06/11/2018"
"Wolverhampton City Council","http://opendatacommunities.org/id/metropolitan-district-council/wolverhampton","STERMAT CAR AND VA","2,106.48","Towers Outdoor Education Centre","5541","Hire of Vehices - Fleet Management","06/11/2018"
"Wolverhampton City Council","http://opendatacommunities.org/id/metropolitan-district-council/wolverhampton","HN NUTTALL LTD","448.35","Towers Outdoor Education Centre","5085","Provisions (Not for resale)","06/11/2018"
"Wolverhampton City Council","http://opendatacommunities.org/id/metropolitan-district-council/wolverhampton","WWW.ARGOS.CO.UK","80.79","EIP Locality 4","5310","Grant Payments","06/11/2018"
"Wolverhampton City Council","http://opendatacommunities.org/id/metropolitan-district-council/wolverhampton","WWW.ARGOS.CO.UK","116.62","Fostering Team & Allowances","5310","Equipment - Purchase","06/11/2018"
"Wolverhampton City Council","http://opendatacommunities.org/id/metropolitan-district-council/wolverhampton","ASDA GROCERIES ONLINE","87.68","Ernest Bold Court","5411","Provisions (Not for resale)","06/11/2018"
"Wolverhampton City Council","http://opendatacommunities.org/id/metropolitan-district-council/wolverhampton","Amazon Prime MT1143K84","6.66","CIN/CP Social Work Unit - Area 5","5968","Subscriptions","05/11/2018"
"Wolverhampton City Council","http://opendatacommunities.org/id/metropolitan-district-council/wolverhampton","POST OFFICE COUNTER","244.00","Adoption and Residence Team & Allowances","9402","Comms - Postage","05/11/2018"
"Wolverhampton City Council","http://opendatacommunities.org/id/metropolitan-district-council/wolverhampton","Virgin Trains","-20.70","Delivery & OCE Development","4112","Public Transport","05/11/2018"
"Wolverhampton City Council","http://opendatacommunities.org/id/metropolitan-district-council/wolverhampton","WWW.WMCA.CO.UK","65.50","IMPACT","9399","Client Transport","05/11/2018"
"Wolverhampton City Council","http://opendatacommunities.org/id/metropolitan-district-council/wolverhampton","HOTJAR","80.63","City Direct","5045","Computing - Purchase of Hardware","05/11/2018"
"Wolverhampton City Council","http://opendatacommunities.org/id/metropolitan-district-council/wolverhampton","FINESSE CARPETS LTD","200.00","LAC Transitions Team","5713","Client Allowances","05/11/2018"
"Wolverhampton City Council","http://opendatacommunities.org/id/metropolitan-district-council/wolverhampton","FINESSE CARPETS LTD","225.00","LAC Transitions Team","5713","Client Allowances","05/11/2018"
"Wolverhampton City Council","http://opendatacommunities.org/id/metropolitan-district-council/wolverhampton","B&M RETAIL LTD","19.14","Cemeteries","5310","Equipment - Purchase","05/11/2018"
"Wolverhampton City Council","http://opendatacommunities.org/id/metropolitan-district-council/wolverhampton","WWW.BALLICOM.CO.UK","159.06","Strategic ICTS (ICT Serv Budget)","5045","Computing - Purchase of Hardware","05/11/2018"
"Wolverhampton City Council","http://opendatacommunities.org/id/metropolitan-district-council/wolverhampton","Virgin Trains","-12.40","Corporate Programs","4112","Public Transport","05/11/2018"
"Wolverhampton City Council","http://opendatacommunities.org/id/metropolitan-district-council/wolverhampton","Amazon Prime MT04Y1S54","7.99","Central Baths","5968","Subscriptions","05/11/2018"
"Wolverhampton City Council","http://opendatacommunities.org/id/metropolitan-district-council/wolverhampton","AMZN Mktp UK MT65189C4","12.45","Intensive Family Support Team","5942","Books","05/11/2018"
"Wolverhampton City Council","http://opendatacommunities.org/id/metropolitan-district-council/wolverhampton","AMZN Mktp UK MT7TP87L4","45.01","Intensive Family Support Team","5942","Books","05/11/2018"
"Wolverhampton City Council","http://opendatacommunities.org/id/metropolitan-district-council/wolverhampton","AMZN Mktp UK MT7NB77F4","7.95","Intensive Family Support Team","5942","Books","05/11/2018"
"Wolverhampton City Council","http://opendatacommunities.org/id/metropolitan-district-council/wolverhampton","Amazon.co.uk MT0GW8244","20.10","Intensive Family Support Team","5969","Equipment - Purchase","05/11/2018"
"Wolverhampton City Council","http://opendatacommunities.org/id/metropolitan-district-council/wolverhampton","AMZN Mktp UK MT9KZ9SU4","12.49","Intensive Family Support Team","5942","Books","05/11/2018"
"Wolverhampton City Council","http://opendatacommunities.org/id/metropolitan-district-council/wolverhampton","AMZN Mktp UK MT7K41SO4","10.04","Intensive Family Support Team","5942","Books","05/11/2018"
"Wolverhampton City Council","http://opendatacommunities.org/id/metropolitan-district-council/wolverhampton","AMZN Mktp UK MT7KR0S24","11.21","Intensive Family Support Team","5942","Books","05/11/2018"
"Wolverhampton City Council","http://opendatacommunities.org/id/metropolitan-district-council/wolverhampton","AMZN Mktp UK MT52G6S74","11.50","Intensive Family Support Team","5942","Books","05/11/2018"
"Wolverhampton City Council","http://opendatacommunities.org/id/metropolitan-district-council/wolverhampton","AMZN Mktp UK MT3432SM4","15.00","Intensive Family Support Team","5942","Books","05/11/2018"
"Wolverhampton City Council","http://opendatacommunities.org/id/metropolitan-district-council/wolverhampton","AMZN Mktp UK MT1Q50S44","19.92","Intensive Family Support Team","5942","Books","05/11/2018"
"Wolverhampton City Council","http://opendatacommunities.org/id/metropolitan-district-council/wolverhampton","WWW.ARGOS.CO.UK","-89.99","Upper Pendeford Farm Childrens Home","5310","Equipment - Purchase","05/11/2018"
"Wolverhampton City Council","http://opendatacommunities.org/id/metropolitan-district-council/wolverhampton","WWW.ARGOS.CO.UK","-86.04","Upper Pendeford Farm Childrens Home","5310","Equipment - Purchase","05/11/2018"
"Wolverhampton City Council","http://opendatacommunities.org/id/metropolitan-district-council/wolverhampton","ASDA GROCERIES ONLINE","-1.65","Upper Pendeford Farm Childrens Home","5411","Provisions (Not for resale)","05/11/2018"
"Wolverhampton City Council","http://opendatacommunities.org/id/metropolitan-district-council/wolverhampton","ASDA GROCERIES ONLINE","219.60","Upper Pendeford Farm Childrens Home","5411","Provisions (Not for resale)","05/11/2018"
"Wolverhampton City Council","http://opendatacommunities.org/id/metropolitan-district-council/wolverhampton","Amazon Prime MT81O57N4","6.66","Mental Health Assessment & Care Mgmt","5968","Subscriptions","05/11/2018"
"Wolverhampton City Council","http://opendatacommunities.org/id/metropolitan-district-council/wolverhampton","GROSVENOR HOUSE","290.00","Service Director Adults","7011","Services - Supplies & Services to users","05/11/2018"
"Wolverhampton City Council","http://opendatacommunities.org/id/metropolitan-district-council/wolverhampton","Virgin Trains","19.00","Strategic Asset Management - General","4112","Public Transport","05/11/2018"
"Wolverhampton City Council","http://opendatacommunities.org/id/metropolitan-district-council/wolverhampton","Amazon.co.uk MT4NO62Z4","9.44","Shopmobility","5969","Equipment - Purchase","05/11/2018"
"Wolverhampton City Council","http://opendatacommunities.org/id/metropolitan-district-council/wolverhampton","ARGOS RETAIL GROUP","20.82","Blakenhall Resource Centre","5310","Equipment - Purchase","05/11/2018"
"Wolverhampton City Council","http://opendatacommunities.org/id/metropolitan-district-council/wolverhampton","Wix.com","186.26","Technical Support","5817","Computing - Purchase of Software","05/11/2018"
"Wolverhampton City Council","http://opendatacommunities.org/id/metropolitan-district-council/wolverhampton","SQUARESPACE INC.","152.50","Learning Technologies","7372","Computing - Purchase of Software","05/11/2018"
"Wolverhampton City Council","http://opendatacommunities.org/id/metropolitan-district-council/wolverhampton","Wix.com","93.13","Technical Support","5817","Computing - Purchase of Software","05/11/2018"
"Wolverhampton City Council","http://opendatacommunities.org/id/metropolitan-district-council/wolverhampton","WIX.COM","93.13","Technical Support","5968","Subscriptions","05/11/2018"
"Wolverhampton City Council","http://opendatacommunities.org/id/metropolitan-district-council/wolverhampton","Amazon Prime MT5TW77X4","6.66","Education And Access","5968","Subscriptions","05/11/2018"
"Wolverhampton City Council","http://opendatacommunities.org/id/metropolitan-district-council/wolverhampton","Trainline","97.13","CIN/CP Social Work Unit - Area 4","4112","Section 17","05/11/2018"
"Wolverhampton City Council","http://opendatacommunities.org/id/metropolitan-district-council/wolverhampton","B&M RETAIL LTD","2.49","Duke Street Bungalows","5310","Equipment - Purchase","05/11/2018"
"Wolverhampton City Council","http://opendatacommunities.org/id/metropolitan-district-council/wolverhampton","SAINSBURYS","200.00","Duke Street Bungalows","6011","Provisions (Not for resale)","05/11/2018"
"Wolverhampton City Council","http://opendatacommunities.org/id/metropolitan-district-council/wolverhampton","Amazon.co.uk MT9CG22X4","20.92","School Crossing Patrol","5969","Equipment - Purchase","05/11/2018"
"Wolverhampton City Council","http://opendatacommunities.org/id/metropolitan-district-council/wolverhampton","ASDA GROCERIES ONLINE","56.44","Ernest Bold Court","5411","Provisions (Not for resale)","05/11/2018"
"Wolverhampton City Council","http://opendatacommunities.org/id/metropolitan-district-council/wolverhampton","SurveyMonkey","340.00","SEN Early Years Team","7372","Equipment - Purchase","05/11/2018"
"Wolverhampton City Council","http://opendatacommunities.org/id/metropolitan-district-council/wolverhampton","AMZN Mktp UK MT7U592S4","32.33","EIP Locality 7","5942","Grant Payments","05/11/2018"
"Wolverhampton City Council","http://opendatacommunities.org/id/metropolitan-district-council/wolverhampton","AMZN Mktp UK MT1Y852V4","49.99","EIP Locality 7","5942","Grant Payments","05/11/2018"
"Wolverhampton City Council","http://opendatacommunities.org/id/metropolitan-district-council/wolverhampton","BRITANNIA","67.50","Destitute Plus","7011","Services - Supplies & Services to users","05/11/2018"
"Wolverhampton City Council","http://opendatacommunities.org/id/metropolitan-district-council/wolverhampton","SAINSBURYS SACAT0558","6.46","Outdoor Events Admin","5411","Provisions (Not for resale)","02/11/2018"
"Wolverhampton City Council","http://opendatacommunities.org/id/metropolitan-district-council/wolverhampton","AMZ Office Trolley","-44.04","EIP Locality 3","5999","Equipment - Purchase","02/11/2018"
"Wolverhampton City Council","http://opendatacommunities.org/id/metropolitan-district-council/wolverhampton","POST OFFICE COUNTER","8.60","Adoption and Residence Team & Allowances","9402","Comms - Postage","02/11/2018"
"Wolverhampton City Council","http://opendatacommunities.org/id/metropolitan-district-council/wolverhampton","ROYAL MAIL GROUP","1.50","Adoption and Residence Team & Allowances","9402","Comms - Postage","02/11/2018"
"Wolverhampton City Council","http://opendatacommunities.org/id/metropolitan-district-council/wolverhampton","TESCO STORES 5194","191.59","Towers Outdoor Education Centre","5411","Provisions (Not for resale)","02/11/2018"
"Wolverhampton City Council","http://opendatacommunities.org/id/metropolitan-district-council/wolverhampton","BARCLAYS","250.00","CIN/CP Social Work Unit - Area 6","6011","Financial Assistance In Exceptional Circ","02/11/2018"
"Wolverhampton City Council","http://opendatacommunities.org/id/metropolitan-district-council/wolverhampton","WWW.ARGOS.CO.UK","364.12","Fostering Team & Allowances","5310","Equipment - Purchase","02/11/2018"
"Wolverhampton City Council","http://opendatacommunities.org/id/metropolitan-district-council/wolverhampton","WWW.THERANGE.CO.UK","18.29","Fostering Team & Allowances","5712","Equipment - Purchase","02/11/2018"
"Wolverhampton City Council","http://opendatacommunities.org/id/metropolitan-district-council/wolverhampton","Twitter Online Ads","8.00","System Leadership","7311","Marketing \ Non-staff advertising","02/11/2018"
"Wolverhampton City Council","http://opendatacommunities.org/id/metropolitan-district-council/wolverhampton","CT WOLVERHAMPTON","20.00","LAC Transitions Team","8398","Client Allowances","02/11/2018"
"Wolverhampton City Council","http://opendatacommunities.org/id/metropolitan-district-council/wolverhampton","B&M RETAIL LTD","6.65","Cemeteries","5310","Equipment - Purchase","02/11/2018"
"Wolverhampton City Council","http://opendatacommunities.org/id/metropolitan-district-council/wolverhampton","WWW.ARGOS.CO.UK","79.00","LAC Transitions Team","5310","Client Allowances","02/11/2018"
"Wolverhampton City Council","http://opendatacommunities.org/id/metropolitan-district-council/wolverhampton","WWW.ARGOS.CO.UK","123.99","LAC Transitions Team","5310","Client Allowances","02/11/2018"
"Wolverhampton City Council","http://opendatacommunities.org/id/metropolitan-district-council/wolverhampton","AMZN Mktp UK MT0LI7SH4","8.49","Intensive Family Support Team","5942","Books","02/11/2018"
"Wolverhampton City Council","http://opendatacommunities.org/id/metropolitan-district-council/wolverhampton","ARGOS DIRECT","159.99","LAC Team","5310","Financial Assistance In Exceptional Circ","02/11/2018"
"Wolverhampton City Council","http://opendatacommunities.org/id/metropolitan-district-council/wolverhampton","WWW.ARGOS.CO.UK","191.65","LAC Transitions Team","5310","Client Allowances","02/11/2018"
"Wolverhampton City Council","http://opendatacommunities.org/id/metropolitan-district-council/wolverhampton","TOMLINSONS","23.03","Archives","5942","Materials","02/11/2018"
"Wolverhampton City Council","http://opendatacommunities.org/id/metropolitan-district-council/wolverhampton","POUNDLAND","13.00","Wolverhampton Indoor and Open Market","5310","Equipment - Purchase","02/11/2018"
"Wolverhampton City Council","http://opendatacommunities.org/id/metropolitan-district-council/wolverhampton","TIPPERS WOLVERHAMPTON","28.79","Cleaning of Buildings - General","5072","Equipment - Purchase","02/11/2018"
"Wolverhampton City Council","http://opendatacommunities.org/id/metropolitan-district-council/wolverhampton","1&1 INTERNET LIMITED","95.88","Learning Technologies","4816","Computing - Purchase of Software","02/11/2018"
"Wolverhampton City Council","http://opendatacommunities.org/id/metropolitan-district-council/wolverhampton","B & Q 1243","9.87","Learning Disabilities Management","5211","Equipment - R & M","02/11/2018"
"Wolverhampton City Council","http://opendatacommunities.org/id/metropolitan-district-council/wolverhampton","B & Q 1243","3.75","Ernest Bold Court","5211","Fixtures and Fittings - R&M","02/11/2018"
"Wolverhampton City Council","http://opendatacommunities.org/id/metropolitan-district-council/wolverhampton","123-REG.CO.UK","23.98","Visitor Economy - Development","4816","Computing - Purchase of Software","02/11/2018"
"Wolverhampton City Council","http://opendatacommunities.org/id/metropolitan-district-council/wolverhampton","CUMMINGS BROTHERS LOCK","20.00","Global Budgets","7399","Equipment - Purchase","02/11/2018"
"Wolverhampton City Council","http://opendatacommunities.org/id/metropolitan-district-council/wolverhampton","POUNDLAND LTD 1463","8.57","Global Budgets","5310","Equipment - Purchase","02/11/2018"
"Wolverhampton City Council","http://opendatacommunities.org/id/metropolitan-district-council/wolverhampton","UNTOUCHABLES","22.50","Education Catering - General Overheads","5231","Materials","02/11/2018"
"Wolverhampton City Council","http://opendatacommunities.org/id/metropolitan-district-council/wolverhampton","GOVERNMENT EVENTS","1,137.00","Central Training","5734","Training Expenses","02/11/2018"
"Wolverhampton City Council","http://opendatacommunities.org/id/metropolitan-district-council/wolverhampton","AMZN Mktp UK MT0QB0DB4","22.81","Parks - East Area Management","5942","Equipment - Purchase","02/11/2018"
"Wolverhampton City Council","http://opendatacommunities.org/id/metropolitan-district-council/wolverhampton","CardtronicsUK","251.85","Childrens with Disabilities Team","6011","No Recourse to Public Funds","01/11/2018"
"Wolverhampton City Council","http://opendatacommunities.org/id/metropolitan-district-council/wolverhampton","FACEBK  E8DV6G6B82","261.81","WV Active Marketing","7311","Marketing \ Non-staff advertising","01/11/2018"
"Wolverhampton City Council","http://opendatacommunities.org/id/metropolitan-district-council/wolverhampton","Cross Country Trains","9.10","Head of Strategic Commissioning � People","4112","Public Transport","01/11/2018"
"Wolverhampton City Council","http://opendatacommunities.org/id/metropolitan-district-council/wolverhampton","CardtronicsUK","20.00","EIP Locality 3","6011","Grant Payments","01/11/2018"
"Wolverhampton City Council","http://opendatacommunities.org/id/metropolitan-district-council/wolverhampton","PAYPAL  ANOVATECHNO","417.94","Visitor Economy - Development","5732","Equipment - Purchase","01/11/2018"
"Wolverhampton City Council","http://opendatacommunities.org/id/metropolitan-district-council/wolverhampton","WATERSTONES","250.00","Global Budgets","5942","Books","01/11/2018"
"Wolverhampton City Council","http://opendatacommunities.org/id/metropolitan-district-council/wolverhampton","EDMUNDSON ELECTRICAL L","159.98","Statutory Services (10RM)","5065","Equipment - R & M","01/11/2018"
"Wolverhampton City Council","http://opendatacommunities.org/id/metropolitan-district-council/wolverhampton","THE BIKEABILITY TRUST","63.30","Cycling Schemes - Bikeability","5111","Equipment - Purchase","01/11/2018"
"Wolverhampton City Council","http://opendatacommunities.org/id/metropolitan-district-council/wolverhampton","EBUYER (UK) LTD","279.66","Macmillan Welfare Rights","5722","Stationery","01/11/2018"
"Wolverhampton City Council","http://opendatacommunities.org/id/metropolitan-district-council/wolverhampton","ROYAL BK OF SCOTLAND","100.00","Ernest Bold Court","6011","Provisions (Not for resale)","01/11/2018"
"Wolverhampton City Council","http://opendatacommunities.org/id/metropolitan-district-council/wolverhampton","WWW.THELAWSOCIETY.ORG","368.00","Legal Services","8699","Subscriptions","01/11/2018"
"Wolverhampton City Council","http://opendatacommunities.org/id/metropolitan-district-council/wolverhampton","LIDL UK  DUDLEY","10.83","Children & Family Contact Services","5411","Provisions (Not for resale)","01/11/2018"
"Wolverhampton City Council","http://opendatacommunities.org/id/metropolitan-district-council/wolverhampton","WWW.REGISTRY-TRUST.ORG","8.00","CIN/CP Social Work Unit - Area 8","8999","Section 17","01/11/2018"
"Wolverhampton City Council","http://opendatacommunities.org/id/metropolitan-district-council/wolverhampton","CARVERS","207.09","Northicote Farm","5211","Materials","01/11/2018"
"Wolverhampton City Council","http://opendatacommunities.org/id/metropolitan-district-council/wolverhampton","FACEBK  JAV26JNAR2","28.68","Communications & Marketing - General","7311","Marketing \ Non-staff advertising","01/11/2018"
"Wolverhampton City Council","http://opendatacommunities.org/id/metropolitan-district-council/wolverhampton","MICROSOFT OFFICE 365 H","66.66","Headstart - Young People Engagement","5816","Computing - Purchase of Software","01/11/2018"
"Wolverhampton City Council","http://opendatacommunities.org/id/metropolitan-district-council/wolverhampton","AMZN MKTP UK MT9WH3DO4","26.88","Ernest Bold Court","5942","Equipment - Purchase","01/11/2018"
"Wolverhampton City Council","http://opendatacommunities.org/id/metropolitan-district-council/wolverhampton","FACEBK ESY7KGEC22","25.54","Admin & Support","7311","Marketing \ Non-staff advertising","01/11/2018"
"Wolverhampton City Council","http://opendatacommunities.org/id/metropolitan-district-council/wolverhampton","HOME BARGAINS","58.22","Cemeteries","5251","Equipment - Purchase","01/11/2018"
"Wolverhampton City Council","http://opendatacommunities.org/id/metropolitan-district-council/wolverhampton","Trainline","59.33","SWP - Infrastructure","4112","Public Transport","01/11/2018"
"Wolverhampton City Council","http://opendatacommunities.org/id/metropolitan-district-council/wolverhampton","AMZN Mktp UK MT0UU1DL4","4.77","Public Health Support Costs","5942","Stationery","01/11/2018"
"Wolverhampton City Council","http://opendatacommunities.org/id/metropolitan-district-council/wolverhampton","POST OFFICE COUNTER","4.45","Adoption and Residence Team & Allowances","9402","Comms - Postage","01/11/2018"
"Wolverhampton City Council","http://opendatacommunities.org/id/metropolitan-district-council/wolverhampton","HOME BARGAINS WOLVERHA","33.52","Emergency Duty Team","5251","Equipment - Purchase","01/11/2018"
"Wolverhampton City Council","http://opendatacommunities.org/id/metropolitan-district-council/wolverhampton","ASDA SUPERSTORE","10.00","LAC Transitions Team","5411","Client Allowances","01/11/2018"
"Wolverhampton City Council","http://opendatacommunities.org/id/metropolitan-district-council/wolverhampton","FLYBE.COM FY2QQX       0","182.97","CIN/CP Social Work Unit - Area 7","4511","Section 17","01/11/2018"
"Wolverhampton City Council","http://opendatacommunities.org/id/metropolitan-district-council/wolverhampton","POST OFFICE COUNTER","201.00","Vulnerable Young Persons Team","9402","Comms - Postage","01/11/2018"
